Workbook

Sheet PFF
A1: ANEXO II - PLANILHAS DE CUSTOS
A3: PROPOSTA FINANCEIRA FINAL | G3: CODIGO:
G4: PFF
A5: NOME DA CONSULTORA:
A7: PROJETO: | E7: CONTRATANTE: | G7: BASE: Out/2023
A8: Unidade de Beneficiamento de Pescado/CE | E8: CODEVASF (SEDE) | G8: PROP: SINAPI/CE: SICRO/CE: Out/2023
A9: Co1 | B9: Cod2 | C9: Categoria / Insumo | D9: Uni | E9: Qde | F9: CUD | G9: CT
A10: 1.0 | C10: EVTEA | G10: =G11+G12 -> 221073.91
A11: 1.1 | B11: RPE | C11: Relatório Parcial EVTEA | D11: Un | E11: 1 | F11: =RPE!H27 -> 64225.86 | G11: =ROUND(E11*F11,2) -> 64225.86
A12: 1.2 | B12: RFE | C12: Relatório Final EVTEA | D12: Un | E12: 1 | F12: =RFE!H27 -> 156848.05 | G12: =ROUND(E12*F12,2) -> 156848.05
A13: 2.0 | C13: Estudos Ambientais | G13: =G14 -> 131463.94
A14: 2.1 | B14: RFA | C14: Relatório Final Estudos Ambientais | D14: Un | E14: 1 | F14: =RFA!H27 -> 131463.94 | G14: =ROUND(E14*F14,2) -> 131463.94
A15: 3.0 | C15: Projeto Básico | G15: =G16+G17 -> 207465.33
A16: 3.1 | B16: RPP | C16: Relatório Parcial Projeto Básico | D16: Un | E16: 1 | F16: =RPP!H27 -> 41144.4 | G16: =ROUND(E16*F16,2) -> 41144.4
A17: 3.2 | B17: RFP | C17: Relatório Final Projeto Básico | D17: Un | E17: 1 | F17: =RFP!H27 -> 166320.93 | G17: =ROUND(E17*F17,2) -> 166320.93
A18: TOTAL DA PROPOSTA A PREÇO GLOBAL | G18: =G15+G13+G10 -> 560003.18

Sheet CROFF
A4: CRONOGRAMA FÍSICO FINANCEIRO | G4: CÓDIGO:
G5: CROFF
A6: Item | B6: Descrição | C6: Total Por Etapa | D6: 30 DIAS | E6: 60 DIAS | F6: 90 DIAS | G6: 120 DIAS
A7: 1.1 | B7: =PFF!C11 -> Relatório Parcial EVTEA | C7: 1 | D7: 1
C8: =PFF!G11 -> 64225.86 | D8: =ROUND($C$8*D7,2) -> 64225.86
A9: 1.2 | B9: =PFF!C12 -> Relatório Final EVTEA | C9: 1 | E9: 1
C10: =PFF!G12 -> 156848.05 | E10: =ROUND($C$10*E9,2) -> 156848.05
A11: 2.1 | B11: =PFF!C14 -> Relatório Final Estudos Ambientais | C11: 1 | F11: 1
C12: =PFF!G14 -> 131463.94 | F12: =ROUND($C$12*F11,2) -> 131463.94
A13: 3.1 | B13: =PFF!C16 -> Relatório Parcial Projeto Básico | C13: 1 | F13: 1
C14: =PFF!G16 -> 41144.4 | F14: =ROUND($C$14*F13,2) -> 41144.4
A15: 3.2 | B15: =PFF!C17 -> Relatório Final Projeto Básico | C15: 1 | G15: 1
C16: =PFF!G17 -> 166320.93 | G16: =ROUND($C$16*G15,2) -> 166320.93
A18: Porcentagem | D18: =ROUND(D8+D12+D14+D10+D16,0)/$G$23 -> 0.1146886344 | E18: =SUM(E8+E12+E14+E10+E16)/$G$23 -> 0.2800842131 | F18: =SUM(F8+F12+F14+F10+F16)/$G$23 -> 0.3082274283 | G18: =SUM(G8+G12+G14+G10+G16)/$G$23 -> 0.2969999742
A19: Custo | D19: =ROUND($G$23*D18,2) -> 64226 | E19: =ROUND($G$23*E18,2) -> 156848.05 | F19: =ROUND($G$23*F18,2) -> 172608.34 | G19: =ROUND($G$23*G18,2) -> 166320.93
A20: Porcentagem Acumulado | D20: =D18 -> 0.1146886344 | E20: =D20+E18 -> 0.3947728475 | F20: 0.7030002758 | G20: =G18+F20 -> 1.00000025
A21: Custo Acumulado | D21: =D19 -> 64226 | E21: 221074.05 | F21: 393682.39 | G21: =G19+F21 -> 560003.32
D23: Total Geral | G23: =PFF!G18 -> 560003.18

Sheet RPE
A1: RELATÓRIO PARCIAL EVTEA | J1: CODIGO:
J2: RPE
A3: NOME DA CONSULTORA:
A5: PROJETO: | F5: CONTRATANTE: | J5: BASE: Out/2023
A6: Unidade de Beneficiamento de Pescado/CE | F6: CODEVASF (SEDE) | J6: PROP: SINAPI/CE: SICRO/CE: Out/2023
A7: Base | B7: Cod2 | C7: Cod3 | D7: Categoria / Insumo | E7: Uni | F7: Qde | G7: CUD | H7: PU | I7: FatorK | J7: CT | K7: PT
A8: SICRO | B8: MO3 | C8: P0 | D8: Engenheiro coordenador (P8061) | E8: mês | F8: ='CRO1_Ins-Pro'!H5*0.2 -> 0.2 | G8: 17018.13 | H8: =ROUND(I8*G8,2) -> 24575.88 | I8: ='PFP2.3_FatorKc'!E36 -> 1.4441 | J8: =ROUND(F8*G8,2) -> 3403.63 | K8: =ROUND(F8*H8,2) -> 4915.18
A9: SICRO | B9: MO2 | C9: P1 | D9: Engenheiro sênior (P8067) | E9: mês | F9: ='CRO1_Ins-Pro'!H6*0.8 -> 0 | G9: 14672.91 | H9: 24874.98 | I9: ='PFP2.2_FatorKb'!$E$36 -> 1.6953 | J9: 0 | K9: 0
A10: SICRO | B10: MO1 | C10: P2 | D10: Engenheiro pleno (P8066) | E10: mês | F10: ='CRO1_Ins-Pro'!H7*0.2 -> 0.4 | G10: 11469.24 | H10: =ROUND(I10*G10,2) -> 27028.41 | I10: ='PFP2.1_FatorKa'!$E$36 -> 2.3566 | J10: =ROUND(F10*G10,2) -> 4587.7 | K10: 10811.36
A11: SICRO | B11: MO1 | C11: P3 | D11: Engenheiro júnior (P8065) | E11: mês | F11: ='CRO1_Ins-Pro'!H8*0.2 -> 0.4 | G11: 11067 | H11: =ROUND(I11*G11,2) -> 26080.49 | I11: ='PFP2.1_FatorKa'!$E$36 -> 2.3566 | J11: =ROUND(F11*G11,2) -> 4426.8 | K11: 10432.2
A12: SICRO | B12: MO1 | C12: T1 | D12: Técnico de projetos/obra (P8147) | E12: mês | F12: ='CRO1_Ins-Pro'!H9*0.2 -> 0.4 | G12: 3091.07 | H12: 7284.42 | I12: ='PFP2.1_FatorKa'!$E$36 -> 2.3566 | J12: 1236.43 | K12: 2913.77
A13: SICRO | B13: MO1 | C13: D | D13: Desenhista (P9848) | E13: mês | F13: ='CRO1_Ins-Pro'!H10*0.2 -> 0.4 | G13: 2499.39 | H13: 5890.06 | I13: ='PFP2.1_FatorKa'!$E$36 -> 2.3566 | J13: 999.76 | K13: 2356.02
A14: SICRO | B14: MO1 | C14: A1 | D14: Secretária (P8135) | E14: mês | F14: ='CRO1_Ins-Pro'!H11*0.2 -> 0.4 | G14: 2335.81 | H14: 5504.57 | I14: ='PFP2.1_FatorKa'!$E$36 -> 2.3566 | J14: 934.32 | K14: 2201.83
A15: SICRO | B15: EC | C15: ECA | D15: Encargos Comp. e Adicionais | E15: mês | F15: ='CRO1_Ins-Pro'!H12*0.2 -> 2.2 | G15: =677.01+301.42+9.98 -> 988.41 | H15: 1241.25 | I15: =PFP3_FatorKd!$E$17 -> 1.2558 | J15: 2174.5 | K15: 2730.75
A16: PROP | B16: EC | C16: AT3 | D16: Auxilio Transporte Secretária | E16: mês | F16: ='CRO1_Ins-Pro'!H13*0.2 -> 0.4 | G16: =IF((22*5)-(G14*0.06*22/30)>0,(22*5)-(G14*0.06*22/30),0) -> 7.22436 | H16: 9.07 | I16: =PFP3_FatorKd!$E$17 -> 1.2558 | J16: 2.89 | K16: 3.63
A17: CODE | B17: LO | C17: V1 | D17: Diárias | E17: dia | F17: ='CRO1_Ins-Pro'!H14*0.2 -> 4 | G17: 239 | H17: 300.14 | I17: =PFP3_FatorKd!$E$17 -> 1.2558 | J17: 956 | K17: 1200.56
A18: PROP | B18: LO | C18: V2 | D18: Pick-up Cab.dupla 2.8 4x4 Diesel | E18: dia | F18: ='CRO1_Ins-Pro'!H15*0.2 -> 2 | G18: 464.91 | H18: 583.83 | I18: =PFP3_FatorKd!$E$17 -> 1.2558 | J18: 929.82 | K18: 1167.66
A19: CODE | B19: EM | C19: M1 | D19: Relatório Parcial | E19: un | F19: ='CRO1_Ins-Pro'!H16 -> 1 | G19: 34.41245818 | H19: 43.22 | I19: =PFP3_FatorKd!$E$17 -> 1.2558 | J19: 34.41 | K19: =ROUND(F19*H19,2) -> 43.22
A20: CODE | B20: EM | C20: M2 | D20: Relatório Final | E20: un | F20: 0 | G20: 1525.911339 | H20: 1916.24 | I20: =PFP3_FatorKd!$E$17 -> 1.2558 | J20: 0 | K20: =ROUND(F20*H20,2) -> 0
A21: CODE | B21: SU | C21: TOP | D21: Total Serviços Topográficos | E21: un | F21: ='CRO1_Ins-Pro'!H18 -> 1 | G21: - | H21: ='PFP1.1_Topo'!G9 -> 13260 | I21: - | J21: - | K21: =ROUND(F21*H21,2) -> 13260
A22: CODE | B22: SU | C22: GEO | D22: Total Serviços Geotécnicos | E22: un | F22: ='CRO1_Ins-Pro'!H19 -> 1 | G22: - | H22: ='PFP1.2_Geo'!G16 -> 12189.68 | I22: - | J22: - | K22: =ROUND(F22*H22,2) -> 12189.68
A23: TOTAL DOS CUSTOS DIRETOS | H23: =SUM(J8:J22) -> 19686.26
A24: TOTAL DOS ENCARGOS E DISPESAS DIVERSAS | H24: =H25-H23 -> 19089.92
A25: TOTAL DA PROPOSTA A PREÇO GLOBAL | H25: =SUM(K8:K20) -> 38776.18
A26: TOTAL DA PROPOSTA DEMAIS SERVIÇOS | H26: =SUM(K21:K22) -> 25449.68
A27: TOTAL DA PROPOSTA | H27: =H25+H26 -> 64225.86
A28: OBSERVAÇÃO:
A29: Alocar os Insumos MO, com respectivo FatorK, dentro da categoria de vínculo contratual (celetista, autonomo, societario)
A30: Uni - unidade de medição do insumo;
A31: Qde - Quantidade do Insumo (não pode ocorrer alteração pela Licitante)
A32: CUD - Custo Unitário Direto do Insumo (sem encargos, taxas e impostos, valor não pode ser maior que o Orçado pela Codevasf)
A33: CT - Custo Total (sem encargos, taxas e impostos) - CT = Qde x CUD
A34: FatorK - Taxa de Ressarcimento de Despesas e Encargos (detalhar composição nas Planilhas "PFP2.1", "PFP2.2", "PFP3")
A35: PU - Preço Unitário do Insumo (incluído encargos, taxas e impostos) - PU = CUD x FatorK
A36: PT - Preço Total do Insumo (incluído encargos, taxas e impostos) - PT = Qde x PU
A37: P - Profissionais nível superior nas áreas de Engenharia, Química, Arquitetura, Agronomia e Veterinária, conforme disposições da Lei 4.950-A/66
A38: S - Profissionais de nível superior nas demais áreas de atuação, incluindo Arqueólogo, Biólogo, Geógrafo e Sociólogo
A39: T - Profissionais de nível médio técnico nas diversas áreas de atuação
A40: A - Profissionais de nível médio de apoio técnico-administrativo

Sheet RFE
A1: RELATÓRIO FINAL EVTEA | J1: CODIGO:
J2: RFE
A3: NOME DA CONSULTORA:
A5: PROJETO: | F5: CONTRATANTE: | J5: BASE: Out/2023
A6: Unidade de Beneficiamento de Pescado/CE | F6: CODEVASF (SEDE) | J6: PROP: SINAPI/CE: SICRO/CE: Out/2023
A7: Base | B7: Cod2 | C7: Cod3 | D7: Categoria / Insumo | E7: Uni | F7: Qde | G7: CUD | H7: PU | I7: FatorK | J7: CT | K7: PT
A8: SICRO | B8: MO3 | C8: P0 | D8: Engenheiro coordenador (P8061) | E8: mês | F8: ='CRO1_Ins-Pro'!H5*0.8 -> 0.8 | G8: 17018.13 | H8: =ROUND(I8*G8,2) -> 24575.88 | I8: ='PFP2.3_FatorKc'!E36 -> 1.4441 | J8: =ROUND(F8*G8,2) -> 13614.5 | K8: =ROUND(F8*H8,2) -> 19660.7
A9: SICRO | B9: MO2 | C9: P1 | D9: Engenheiro sênior (P8067) | E9: mês | F9: ='CRO1_Ins-Pro'!H6*0.8 -> 0 | G9: 14672.91 | H9: 24874.98 | I9: ='PFP2.2_FatorKb'!$E$36 -> 1.6953 | J9: 0 | K9: 0
A10: SICRO | B10: MO1 | C10: P2 | D10: Engenheiro pleno (P8066) | E10: mês | F10: ='CRO1_Ins-Pro'!H7*0.8 -> 1.6 | G10: 11469.24 | H10: =ROUND(I10*G10,2) -> 27028.41 | I10: ='PFP2.1_FatorKa'!$E$36 -> 2.3566 | J10: =ROUND(F10*G10,2) -> 18350.78 | K10: 43245.46
A11: SICRO | B11: MO1 | C11: P3 | D11: Engenheiro júnior (P8065) | E11: mês | F11: ='CRO1_Ins-Pro'!H8*0.8 -> 1.6 | G11: 11067 | H11: =ROUND(I11*G11,2) -> 26080.49 | I11: ='PFP2.1_FatorKa'!$E$36 -> 2.3566 | J11: =ROUND(F11*G11,2) -> 17707.2 | K11: 41728.78
A12: SICRO | B12: MO1 | C12: T1 | D12: Técnico de projetos/obra (P8147) | E12: mês | F12: ='CRO1_Ins-Pro'!H9*0.8 -> 1.6 | G12: 3091.07 | H12: 7284.42 | I12: ='PFP2.1_FatorKa'!$E$36 -> 2.3566 | J12: 4945.71 | K12: 11655.07
A13: SICRO | B13: MO1 | C13: D | D13: Desenhista (P9848) | E13: mês | F13: ='CRO1_Ins-Pro'!H10*0.8 -> 1.6 | G13: 2499.39 | H13: 5890.06 | I13: ='PFP2.1_FatorKa'!$E$36 -> 2.3566 | J13: 3999.02 | K13: 9424.1
A14: SICRO | B14: MO1 | C14: A1 | D14: Secretária (P8135) | E14: mês | F14: ='CRO1_Ins-Pro'!H11*0.8 -> 1.6 | G14: 2335.81 | H14: 5504.57 | I14: ='PFP2.1_FatorKa'!$E$36 -> 2.3566 | J14: 3737.3 | K14: 8807.31
A15: SICRO | B15: EC | C15: ECA | D15: Encargos Comp. e Adicionais | E15: mês | F15: ='CRO1_Ins-Pro'!H12*0.8 -> 8.8 | G15: =677.01+301.42+9.98 -> 988.41 | H15: 1241.25 | I15: =PFP3_FatorKd!$E$17 -> 1.2558 | J15: 8698.01 | K15: 10923
A16: PROP | B16: EC | C16: AT3 | D16: Auxilio Transporte Secretária | E16: mês | F16: ='CRO1_Ins-Pro'!H13*0.8 -> 1.6 | G16: =IF((22*5)-(G14*0.06*22/30)>0,(22*5)-(G14*0.06*22/30),0) -> 7.22436 | H16: 9.07 | I16: =PFP3_FatorKd!$E$17 -> 1.2558 | J16: 11.56 | K16: 14.51
A17: CODE | B17: LO | C17: V1 | D17: Diárias | E17: dia | F17: ='CRO1_Ins-Pro'!H14*0.8 -> 16 | G17: 239 | H17: 300.14 | I17: =PFP3_FatorKd!$E$17 -> 1.2558 | J17: 3824 | K17: 4802.24
A18: PROP | B18: LO | C18: V2 | D18: Pick-up Cab.dupla 2.8 4x4 Diesel | E18: dia | F18: ='CRO1_Ins-Pro'!H15*0.8 -> 8 | G18: 464.91 | H18: 583.83 | I18: =PFP3_FatorKd!$E$17 -> 1.2558 | J18: 3719.28 | K18: 4670.64
A19: CODE | B19: EM | C19: M1 | D19: Relatório Parcial | E19: un | F19: 0 | G19: 34.41245818 | H19: 43.22 | I19: =PFP3_FatorKd!$E$17 -> 1.2558 | J19: 0 | K19: =ROUND(F19*H19,2) -> 0
A20: CODE | B20: EM | C20: M2 | D20: Relatório Final | E20: un | F20: ='CRO1_Ins-Pro'!H17 -> 1 | G20: 1525.911339 | H20: 1916.24 | I20: =PFP3_FatorKd!$E$17 -> 1.2558 | J20: 1525.91 | K20: =ROUND(F20*H20,2) -> 1916.24
A21: CODE | B21: SU | C21: TOP | D21: Total Serviços Topográficos | E21: un | F21: 0 | G21: - | H21: ='PFP1.1_Topo'!G9 -> 13260 | I21: - | J21: - | K21: =ROUND(F21*H21,2) -> 0
A22: CODE | B22: SU | C22: GEO | D22: Total Serviços Geotécnicos | E22: un | F22: 0 | G22: - | H22: ='PFP1.2_Geo'!G16 -> 12189.68 | I22: - | J22: - | K22: =ROUND(F22*H22,2) -> 0
A23: TOTAL DOS CUSTOS DIRETOS | H23: =SUM(J8:J22) -> 80133.27
A24: TOTAL DOS ENCARGOS E DISPESAS DIVERSAS | H24: =H25-H23 -> 76714.78
A25: TOTAL DA PROPOSTA A PREÇO GLOBAL | H25: =SUM(K8:K20) -> 156848.05
A26: TOTAL DA PROPOSTA DEMAIS SERVIÇOS | H26: =SUM(K21:K22) -> 0
A27: TOTAL DA PROPOSTA | H27: =H25+H26 -> 156848.05
A28: OBSERVAÇÃO:
A29: Alocar os Insumos MO, com respectivo FatorK, dentro da categoria de vínculo contratual (celetista, autonomo, societario)
A30: Uni - unidade de medição do insumo;
A31: Qde - Quantidade do Insumo (não pode ocorrer alteração pela Licitante)
A32: CUD - Custo Unitário Direto do Insumo (sem encargos, taxas e impostos, valor não pode ser maior que o Orçado pela Codevasf)
A33: CT - Custo Total (sem encargos, taxas e impostos) - CT = Qde x CUD
A34: FatorK - Taxa de Ressarcimento de Despesas e Encargos (detalhar composição nas Planilhas "PFP2.1", "PFP2.2", "PFP3")
A35: PU - Preço Unitário do Insumo (incluído encargos, taxas e impostos) - PU = CUD x FatorK
A36: PT - Preço Total do Insumo (incluído encargos, taxas e impostos) - PT = Qde x PU
A37: P - Profissionais nível superior nas áreas de Engenharia, Química, Arquitetura, Agronomia e Veterinária, conforme disposições da Lei 4.950-A/66
A38: S - Profissionais de nível superior nas demais áreas de atuação, incluindo Arqueólogo, Biólogo, Geógrafo e Sociólogo
A39: T - Profissionais de nível médio técnico nas diversas áreas de atuação
A40: A - Profissionais de nível médio de apoio técnico-administrativo

Sheet PFP (hidden)
A1: PROPOSTA FINANCEIRA DO PROJETO | J1: CODIGO:
J2: PFP
A3: NOME DA CONSULTORA:
A5: PROJETO: | F5: CONTRATANTE: | J5: BASE: Out/2023
A6: Unidade de Beneficiamento de Pescado/CE | F6: CODEVASF (SEDE) | J6: PROP: SINAPI/TO: SICRO/NA: Out/2023
A7: Base | B7: Cod2 | C7: Cod3 | D7: Categoria / Insumo | E7: Uni | F7: Qde | G7: CUD | H7: PU | I7: FatorK | J7: CT | K7: PT
A8: SICRO | B8: MO3 | C8: P0 | D8: Engenheiro coordenador (P8061) | E8: mês | F8: ='CRO1_Ins-Pro'!D5 -> 3 | G8: 17018.13 | H8: =ROUND(I8*G8,2) -> 24575.88 | I8: ='PFP2.3_FatorKc'!E36 -> 1.4441 | J8: =ROUND(F8*G8,2) -> 51054.39 | K8: =ROUND(F8*H8,2) -> 73727.64
A9: SICRO | B9: MO2 | C9: P1 | D9: Engenheiro sênior (P8067) | E9: mês | F9: ='CRO1_Ins-Pro'!D6 -> 0 | G9: 14672.91 | H9: 24874.98 | I9: ='PFP2.2_FatorKb'!$E$36 -> 1.6953 | J9: 0 | K9: 0
A10: SICRO | B10: MO1 | C10: P2 | D10: Engenheiro pleno (P8066) | E10: mês | F10: ='CRO1_Ins-Pro'!D7 -> 5 | G10: 11469.24 | H10: =ROUND(I10*G10,2) -> 27028.41 | I10: ='PFP2.1_FatorKa'!$E$36 -> 2.3566 | J10: =ROUND(F10*G10,2) -> 57346.2 | K10: 135142.05
A11: SICRO | B11: MO1 | C11: P3 | D11: Engenheiro júnior (P8065) | E11: mês | F11: ='CRO1_Ins-Pro'!D8 -> 5 | G11: 11067 | H11: =ROUND(I11*G11,2) -> 26080.49 | I11: ='PFP2.1_FatorKa'!$E$36 -> 2.3566 | J11: =ROUND(F11*G11,2) -> 55335 | K11: 130402.45
A12: SICRO | B12: MO1 | C12: T1 | D12: Técnico de projetos/obra (P8147) | E12: mês | F12: ='CRO1_Ins-Pro'!D9 -> 5 | G12: 3091.07 | H12: 7284.42 | I12: ='PFP2.1_FatorKa'!$E$36 -> 2.3566 | J12: 15455.35 | K12: 36422.1
A13: SICRO | B13: MO1 | C13: D | D13: Desenhista (P9848) | E13: mês | F13: ='CRO1_Ins-Pro'!D10 -> 6 | G13: 2499.39 | H13: 5890.06 | I13: ='PFP2.1_FatorKa'!$E$36 -> 2.3566 | J13: 14996.34 | K13: 35340.36
A14: SICRO | B14: MO1 | C14: A1 | D14: Secretária (P8135) | E14: mês | F14: ='CRO1_Ins-Pro'!D11 -> 6 | G14: 2335.81 | H14: =ROUND(I14*G14,2) -> 5504.57 | I14: ='PFP2.1_FatorKa'!$E$36 -> 2.3566 | J14: =ROUND(F14*G14,2) -> 14014.86 | K14: =ROUND(F14*H14,2) -> 33027.42
A15: SICRO | B15: EC | C15: ECA | D15: Encargos Comp. e Adicionais | E15: mês | F15: ='CRO1_Ins-Pro'!D12 -> 30 | G15: =677.01+301.42+9.98 -> 988.41 | H15: 1241.25 | I15: =PFP3_FatorKd!$E$17 -> 1.2558 | J15: =ROUND(F15*G15,2) -> 29652.3 | K15: =ROUND(F15*H15,2) -> 37237.5
A16: PROP | B16: EC | C16: AT3 | D16: Auxilio Transporte Secretária | E16: mês | F16: ='CRO1_Ins-Pro'!D13 -> 6 | G16: =IF((22*5)-(G14*0.06*22/30)>0,(22*5)-(G14*0.06*22/30),0) -> 7.22436 | H16: =ROUND(I16*G16,2) -> 9.07 | I16: =PFP3_FatorKd!$E$17 -> 1.2558 | J16: =ROUND(F16*G16,2) -> 43.35 | K16: =ROUND(F16*H16,2) -> 54.42
A17: CODE | B17: LO | C17: V1 | D17: Diárias | E17: dia | F17: ='CRO1_Ins-Pro'!D14 -> 80 | G17: 239 | H17: 300.14 | I17: =PFP3_FatorKd!$E$17 -> 1.2558 | J17: 19120 | K17: 24011.2
A18: PROP | B18: LO | C18: V2 | D18: Pick-up Cab.dupla 2.8 4x4 Diesel | E18: dia | F18: ='CRO1_Ins-Pro'!D15 -> 40 | G18: 464.91 | H18: 583.83 | I18: =PFP3_FatorKd!$E$17 -> 1.2558 | J18: 18596.4 | K18: 23353.2
A19: CODE | B19: EM | C19: M1 | D19: Relatório Parcial | E19: un | F19: ='CRO1_Ins-Pro'!D16 -> 2 | G19: 34.41245818 | H19: 43.22 | I19: =PFP3_FatorKd!$E$17 -> 1.2558 | J19: 68.82 | K19: =ROUND(F19*H19,2) -> 86.44
A20: CODE | B20: EM | C20: M2 | D20: Relatório Final | E20: un | F20: ='CRO1_Ins-Pro'!D17 -> 3 | G20: 1525.911339 | H20: 1916.24 | I20: =PFP3_FatorKd!$E$17 -> 1.2558 | J20: 4577.73 | K20: =ROUND(F20*H20,2) -> 5748.72
A21: CODE | B21: SU | C21: TOP | D21: Total Serviços Topográficos | E21: un | F21: ='CRO1_Ins-Pro'!D18 -> 1 | G21: - | H21: ='PFP1.1_Topo'!G9 -> 13260 | I21: - | J21: - | K21: =ROUND(F21*H21,2) -> 13260
A22: CODE | B22: SU | C22: GEO | D22: Total Serviços Geotécnicos | E22: un | F22: ='CRO1_Ins-Pro'!D19 -> 1 | G22: - | H22: ='PFP1.2_Geo'!G16 -> 12189.68 | I22: - | J22: - | K22: =ROUND(F22*H22,2) -> 12189.68
A23: TOTAL DOS CUSTOS DIRETOS | H23: =SUM(J8:J22) -> 280260.74
A24: TOTAL DOS ENCARGOS E DISPESAS DIVERSAS | H24: =H25-H23 -> 254292.76
A25: TOTAL DA PROPOSTA A PREÇO GLOBAL | H25: =SUM(K8:K20) -> 534553.5
A26: TOTAL DA PROPOSTA A PREÇO UNITÁRIO | H26: =SUM(K21:K22) -> 25449.68
A27: TOTAL DA PROPOSTA | H27: =H25+H26 -> 560003.18
A28: OBSERVAÇÃO:
A29: Alocar os Insumos MO, com respectivo FatorK, dentro da categoria de vínculo contratual (celetista, autonomo, societario)
A30: Uni - unidade de medição do insumo;
A31: Qde - Quantidade do Insumo (não pode ocorrer alteração pela Licitante)
A32: CUD - Custo Unitário Direto do Insumo (sem encargos, taxas e impostos, valor não pode ser maior que o Orçado pela Codevasf)
A33: CT - Custo Total (sem encargos, taxas e impostos) - CT = Qde x CUD
A34: FatorK - Taxa de Ressarcimento de Despesas e Encargos (detalhar composição nas Planilhas "PFP2.1", "PFP2.2", "PFP3")
A35: PU - Preço Unitário do Insumo (incluído encargos, taxas e impostos) - PU = CUD x FatorK
A36: PT - Preço Total do Insumo (incluído encargos, taxas e impostos) - PT = Qde x PU
A37: P - Profissionais nível superior nas áreas de Engenharia, Química, Arquitetura, Agronomia e Veterinária, conforme disposições da Lei 4.950-A/66
A38: S - Profissionais de nível superior nas demais áreas de atuação, incluindo Arqueólogo, Biólogo, Geógrafo e Sociólogo
A39: T - Profissionais de nível médio técnico nas diversas áreas de atuação
A40: A - Profissionais de nível médio de apoio técnico-administrativo

Sheet RFA
A1: RELATÓRIO FINAL ESTUDOS AMBIENTAIS | J1: CODIGO:
J2: RFA
A3: NOME DA CONSULTORA:
A5: PROJETO: | F5: CONTRATANTE: | J5: BASE: Out/2023
A6: Unidade de Beneficiamento de Pescado/CE | F6: CODEVASF (SEDE) | J6: PROP: SINAPI/CE: SICRO/CE: Out/2023
A7: Base | B7: Cod2 | C7: Cod3 | D7: Categoria / Insumo | E7: Uni | F7: Qde | G7: CUD | H7: PU | I7: FatorK | J7: CT | K7: PT
A8: SICRO | B8: MO3 | C8: P0 | D8: Engenheiro coordenador (P8061) | E8: mês | F8: ='CRO1_Ins-Pro'!I5 -> 1 | G8: 17018.13 | H8: =ROUND(I8*G8,2) -> 24575.88 | I8: ='PFP2.3_FatorKc'!E36 -> 1.4441 | J8: =ROUND(F8*G8,2) -> 17018.13 | K8: =ROUND(F8*H8,2) -> 24575.88
A9: SICRO | B9: MO2 | C9: P1 | D9: Engenheiro sênior (P8067) | E9: mês | F9: ='CRO1_Ins-Pro'!I6 -> 0 | G9: 14672.91 | H9: 24874.98 | I9: ='PFP2.2_FatorKb'!$E$36 -> 1.6953 | J9: 0 | K9: 0
A10: SICRO | B10: MO1 | C10: P2 | D10: Engenheiro pleno (P8066) | E10: mês | F10: ='CRO1_Ins-Pro'!I7 -> 1 | G10: 11469.24 | H10: =ROUND(I10*G10,2) -> 27028.41 | I10: ='PFP2.1_FatorKa'!$E$36 -> 2.3566 | J10: =ROUND(F10*G10,2) -> 11469.24 | K10: 27028.41
A11: SICRO | B11: MO1 | C11: P3 | D11: Engenheiro júnior (P8065) | E11: mês | F11: ='CRO1_Ins-Pro'!I8 -> 1 | G11: 11067 | H11: =ROUND(I11*G11,2) -> 26080.49 | I11: ='PFP2.1_FatorKa'!$E$36 -> 2.3566 | J11: =ROUND(F11*G11,2) -> 11067 | K11: 26080.49
A12: SICRO | B12: MO1 | C12: T1 | D12: Técnico de projetos/obra (P8147) | E12: mês | F12: ='CRO1_Ins-Pro'!I9 -> 1 | G12: 3091.07 | H12: 7284.42 | I12: ='PFP2.1_FatorKa'!$E$36 -> 2.3566 | J12: 3091.07 | K12: 7284.42
A13: SICRO | B13: MO1 | C13: D | D13: Desenhista (P9848) | E13: mês | F13: ='CRO1_Ins-Pro'!I10 -> 2 | G13: 2499.39 | H13: 5890.06 | I13: ='PFP2.1_FatorKa'!$E$36 -> 2.3566 | J13: 4998.78 | K13: 11780.12
A14: SICRO | B14: MO1 | C14: A1 | D14: Secretária (P8135) | E14: mês | F14: ='CRO1_Ins-Pro'!I11 -> 2 | G14: 2335.81 | H14: 5504.57 | I14: ='PFP2.1_FatorKa'!$E$36 -> 2.3566 | J14: 4671.62 | K14: 11009.14
A15: SICRO | B15: EC | C15: ECA | D15: Encargos Comp. e Adicionais | E15: mês | F15: ='CRO1_Ins-Pro'!I12 -> 8 | G15: =677.01+301.42+9.98 -> 988.41 | H15: 1241.25 | I15: =PFP3_FatorKd!$E$17 -> 1.2558 | J15: 7907.28 | K15: 9930
A16: PROP | B16: EC | C16: AT3 | D16: Auxilio Transporte Secretária | E16: mês | F16: ='CRO1_Ins-Pro'!I13 -> 2 | G16: =IF((22*5)-(G14*0.06*22/30)>0,(22*5)-(G14*0.06*22/30),0) -> 7.22436 | H16: 9.07 | I16: =PFP3_FatorKd!$E$17 -> 1.2558 | J16: 14.45 | K16: 18.14
A17: CODE | B17: LO | C17: V1 | D17: Diárias | E17: dia | F17: ='CRO1_Ins-Pro'!I14 -> 20 | G17: 239 | H17: 300.14 | I17: =PFP3_FatorKd!$E$17 -> 1.2558 | J17: 4780 | K17: 6002.8
A18: PROP | B18: LO | C18: V2 | D18: Pick-up Cab.dupla 2.8 4x4 Diesel | E18: dia | F18: ='CRO1_Ins-Pro'!I15 -> 10 | G18: 464.91 | H18: 583.83 | I18: =PFP3_FatorKd!$E$17 -> 1.2558 | J18: 4649.1 | K18: 5838.3
A19: CODE | B19: EM | C19: M1 | D19: Relatório Parcial | E19: un | F19: 0 | G19: 34.41245818 | H19: 43.22 | I19: =PFP3_FatorKd!$E$17 -> 1.2558 | J19: 0 | K19: =ROUND(F19*H19,2) -> 0
A20: CODE | B20: EM | C20: M2 | D20: Relatório Final | E20: un | F20: ='CRO1_Ins-Pro'!I17 -> 1 | G20: 1525.911339 | H20: 1916.24 | I20: =PFP3_FatorKd!$E$17 -> 1.2558 | J20: 1525.91 | K20: =ROUND(F20*H20,2) -> 1916.24
A21: CODE | B21: SU | C21: TOP | D21: Total Serviços Topográficos | E21: un | F21: 0 | G21: - | H21: ='PFP1.1_Topo'!G9 -> 13260 | I21: - | J21: - | K21: =ROUND(F21*H21,2) -> 0
A22: CODE | B22: SU | C22: GEO | D22: Total Serviços Geotécnicos | E22: un | F22: 0 | G22: - | H22: ='PFP1.2_Geo'!G16 -> 12189.68 | I22: - | J22: - | K22: =ROUND(F22*H22,2) -> 0
A23: TOTAL DOS CUSTOS DIRETOS | H23: =SUM(J8:J22) -> 71192.58
A24: TOTAL DOS ENCARGOS E DISPESAS DIVERSAS | H24: =H25-H23 -> 60271.36
A25: TOTAL DA PROPOSTA A PREÇO GLOBAL | H25: =SUM(K8:K20) -> 131463.94
A26: TOTAL DA PROPOSTA DEMAIS SERVIÇOS | H26: =SUM(K21:K22) -> 0
A27: TOTAL DA PROPOSTA | H27: =H25+H26 -> 131463.94
A28: OBSERVAÇÃO:
A29: Alocar os Insumos MO, com respectivo FatorK, dentro da categoria de vínculo contratual (celetista, autonomo, societario)
A30: Uni - unidade de medição do insumo;
A31: Qde - Quantidade do Insumo (não pode ocorrer alteração pela Licitante)
A32: CUD - Custo Unitário Direto do Insumo (sem encargos, taxas e impostos, valor não pode ser maior que o Orçado pela Codevasf)
A33: CT - Custo Total (sem encargos, taxas e impostos) - CT = Qde x CUD
A34: FatorK - Taxa de Ressarcimento de Despesas e Encargos (detalhar composição nas Planilhas "PFP2.1", "PFP2.2", "PFP3")
A35: PU - Preço Unitário do Insumo (incluído encargos, taxas e impostos) - PU = CUD x FatorK
A36: PT - Preço Total do Insumo (incluído encargos, taxas e impostos) - PT = Qde x PU
A37: P - Profissionais nível superior nas áreas de Engenharia, Química, Arquitetura, Agronomia e Veterinária, conforme disposições da Lei 4.950-A/66
A38: S - Profissionais de nível superior nas demais áreas de atuação, incluindo Arqueólogo, Biólogo, Geógrafo e Sociólogo
A39: T - Profissionais de nível médio técnico nas diversas áreas de atuação
A40: A - Profissionais de nível médio de apoio técnico-administrativo

Sheet RPP
A1: RELATÓRIO PARCIAL PROJETO BÁSICO | J1: CODIGO:
J2: RPP
A3: NOME DA CONSULTORA:
A5: PROJETO: | F5: CONTRATANTE: | J5: BASE: Out/2023
A6: Unidade de Beneficiamento de Pescado/CE | F6: CODEVASF (SEDE) | J6: PROP: SINAPI/CE: SICRO/CE: Out/2023
A7: Base | B7: Cod2 | C7: Cod3 | D7: Categoria / Insumo | E7: Uni | F7: Qde | G7: CUD | H7: PU | I7: FatorK | J7: CT | K7: PT
A8: SICRO | B8: MO3 | C8: P0 | D8: Engenheiro coordenador (P8061) | E8: mês | F8: ='CRO1_Ins-Pro'!J5*0.2 -> 0.2 | G8: 17018.13 | H8: =ROUND(I8*G8,2) -> 24575.88 | I8: ='PFP2.3_FatorKc'!E36 -> 1.4441 | J8: =ROUND(F8*G8,2) -> 3403.63 | K8: =ROUND(F8*H8,2) -> 4915.18
A9: SICRO | B9: MO2 | C9: P1 | D9: Engenheiro sênior (P8067) | E9: mês | F9: ='CRO1_Ins-Pro'!J6*0.2 -> 0 | G9: 14672.91 | H9: 24874.98 | I9: ='PFP2.2_FatorKb'!$E$36 -> 1.6953 | J9: 0 | K9: 0
A10: SICRO | B10: MO1 | C10: P2 | D10: Engenheiro pleno (P8066) | E10: mês | F10: ='CRO1_Ins-Pro'!J7*0.2 -> 0.4 | G10: 11469.24 | H10: =ROUND(I10*G10,2) -> 27028.41 | I10: ='PFP2.1_FatorKa'!$E$36 -> 2.3566 | J10: =ROUND(F10*G10,2) -> 4587.7 | K10: 10811.36
A11: SICRO | B11: MO1 | C11: P3 | D11: Engenheiro júnior (P8065) | E11: mês | F11: ='CRO1_Ins-Pro'!J8*0.2 -> 0.4 | G11: 11067 | H11: =ROUND(I11*G11,2) -> 26080.49 | I11: ='PFP2.1_FatorKa'!$E$36 -> 2.3566 | J11: =ROUND(F11*G11,2) -> 4426.8 | K11: 10432.2
A12: SICRO | B12: MO1 | C12: T1 | D12: Técnico de projetos/obra (P8147) | E12: mês | F12: ='CRO1_Ins-Pro'!J9*0.2 -> 0.4 | G12: 3091.07 | H12: 7284.42 | I12: ='PFP2.1_FatorKa'!$E$36 -> 2.3566 | J12: 1236.43 | K12: 2913.77
A13: SICRO | B13: MO1 | C13: D | D13: Desenhista (P9848) | E13: mês | F13: ='CRO1_Ins-Pro'!J10*0.2 -> 0.4 | G13: 2499.39 | H13: 5890.06 | I13: ='PFP2.1_FatorKa'!$E$36 -> 2.3566 | J13: 999.76 | K13: 2356.02
A14: SICRO | B14: MO1 | C14: A1 | D14: Secretária (P8135) | E14: mês | F14: ='CRO1_Ins-Pro'!J11*0.2 -> 0.4 | G14: 2335.81 | H14: 5504.57 | I14: ='PFP2.1_FatorKa'!$E$36 -> 2.3566 | J14: 934.32 | K14: 2201.83
A15: SICRO | B15: EC | C15: ECA | D15: Encargos Comp. e Adicionais | E15: mês | F15: ='CRO1_Ins-Pro'!J12*0.2 -> 2.2 | G15: =677.01+301.42+9.98 -> 988.41 | H15: 1241.25 | I15: =PFP3_FatorKd!$E$17 -> 1.2558 | J15: 2174.5 | K15: 2730.75
A16: PROP | B16: EC | C16: AT3 | D16: Auxilio Transporte Secretária | E16: mês | F16: ='CRO1_Ins-Pro'!J13*0.2 -> 0.4 | G16: =IF((22*5)-(G14*0.06*22/30)>0,(22*5)-(G14*0.06*22/30),0) -> 7.22436 | H16: 9.07 | I16: =PFP3_FatorKd!$E$17 -> 1.2558 | J16: 2.89 | K16: 3.63
A17: CODE | B17: LO | C17: V1 | D17: Diárias | E17: dia | F17: ='CRO1_Ins-Pro'!J14*0.2 -> 8 | G17: 239 | H17: 300.14 | I17: =PFP3_FatorKd!$E$17 -> 1.2558 | J17: 1912 | K17: 2401.12
A18: PROP | B18: LO | C18: V2 | D18: Pick-up Cab.dupla 2.8 4x4 Diesel | E18: dia | F18: ='CRO1_Ins-Pro'!J15*0.2 -> 4 | G18: 464.91 | H18: 583.83 | I18: =PFP3_FatorKd!$E$17 -> 1.2558 | J18: 1859.64 | K18: 2335.32
A19: CODE | B19: EM | C19: M1 | D19: Relatório Parcial | E19: un | F19: ='CRO1_Ins-Pro'!J16 -> 1 | G19: 34.41245818 | H19: 43.22 | I19: =PFP3_FatorKd!$E$17 -> 1.2558 | J19: 34.41 | K19: =ROUND(F19*H19,2) -> 43.22
A20: CODE | B20: EM | C20: M2 | D20: Relatório Final | E20: un | F20: 0 | G20: 1525.911339 | H20: 1916.24 | I20: =PFP3_FatorKd!$E$17 -> 1.2558 | J20: 0 | K20: =ROUND(F20*H20,2) -> 0
A21: CODE | B21: SU | C21: TOP | D21: Total Serviços Topográficos | E21: un | F21: 0 | G21: - | H21: ='PFP1.1_Topo'!G9 -> 13260 | I21: - | J21: - | K21: =ROUND(F21*H21,2) -> 0
A22: CODE | B22: SU | C22: GEO | D22: Total Serviços Geotécnicos | E22: un | F22: 0 | G22: - | H22: ='PFP1.2_Geo'!G16 -> 12189.68 | I22: - | J22: - | K22: =ROUND(F22*H22,2) -> 0
A23: TOTAL DOS CUSTOS DIRETOS | H23: =SUM(J8:J22) -> 21572.08
A24: TOTAL DOS ENCARGOS E DISPESAS DIVERSAS | H24: =H25-H23 -> 19572.32
A25: TOTAL DA PROPOSTA A PREÇO GLOBAL | H25: =SUM(K8:K20) -> 41144.4
A26: TOTAL DA PROPOSTA DEMAIS SERVIÇOS | H26: =SUM(K21:K22) -> 0
A27: TOTAL DA PROPOSTA | H27: =H25+H26 -> 41144.4
A28: OBSERVAÇÃO:
A29: Alocar os Insumos MO, com respectivo FatorK, dentro da categoria de vínculo contratual (celetista, autonomo, societario)
A30: Uni - unidade de medição do insumo;
A31: Qde - Quantidade do Insumo (não pode ocorrer alteração pela Licitante)
A32: CUD - Custo Unitário Direto do Insumo (sem encargos, taxas e impostos, valor não pode ser maior que o Orçado pela Codevasf)
A33: CT - Custo Total (sem encargos, taxas e impostos) - CT = Qde x CUD
A34: FatorK - Taxa de Ressarcimento de Despesas e Encargos (detalhar composição nas Planilhas "PFP2.1", "PFP2.2", "PFP3")
A35: PU - Preço Unitário do Insumo (incluído encargos, taxas e impostos) - PU = CUD x FatorK
A36: PT - Preço Total do Insumo (incluído encargos, taxas e impostos) - PT = Qde x PU
A37: P - Profissionais nível superior nas áreas de Engenharia, Química, Arquitetura, Agronomia e Veterinária, conforme disposições da Lei 4.950-A/66
A38: S - Profissionais de nível superior nas demais áreas de atuação, incluindo Arqueólogo, Biólogo, Geógrafo e Sociólogo
A39: T - Profissionais de nível médio técnico nas diversas áreas de atuação
A40: A - Profissionais de nível médio de apoio técnico-administrativo

Sheet RFP
A1: RELATÓRIO FINAL PROJETO BÁSICO | J1: CODIGO:
J2: RFP
A3: NOME DA CONSULTORA:
A5: PROJETO: | F5: CONTRATANTE: | J5: BASE: Out/2023
A6: Unidade de Beneficiamento de Pescado/CE | F6: CODEVASF (SEDE) | J6: PROP: SINAPI/CE: SICRO/CE: Out/2023
A7: Base | B7: Cod2 | C7: Cod3 | D7: Categoria / Insumo | E7: Uni | F7: Qde | G7: CUD | H7: PU | I7: FatorK | J7: CT | K7: PT
A8: SICRO | B8: MO3 | C8: P0 | D8: Engenheiro coordenador (P8061) | E8: mês | F8: ='CRO1_Ins-Pro'!J5*0.8 -> 0.8 | G8: 17018.13 | H8: =ROUND(I8*G8,2) -> 24575.88 | I8: ='PFP2.3_FatorKc'!E36 -> 1.4441 | J8: =ROUND(F8*G8,2) -> 13614.5 | K8: =ROUND(F8*H8,2) -> 19660.7
A9: SICRO | B9: MO2 | C9: P1 | D9: Engenheiro sênior (P8067) | E9: mês | F9: ='CRO1_Ins-Pro'!J6*0.8 -> 0 | G9: 14672.91 | H9: 24874.98 | I9: ='PFP2.2_FatorKb'!$E$36 -> 1.6953 | J9: 0 | K9: 0
A10: SICRO | B10: MO1 | C10: P2 | D10: Engenheiro pleno (P8066) | E10: mês | F10: ='CRO1_Ins-Pro'!J7*0.8 -> 1.6 | G10: 11469.24 | H10: =ROUND(I10*G10,2) -> 27028.41 | I10: ='PFP2.1_FatorKa'!$E$36 -> 2.3566 | J10: =ROUND(F10*G10,2) -> 18350.78 | K10: 43245.46
A11: SICRO | B11: MO1 | C11: P3 | D11: Engenheiro júnior (P8065) | E11: mês | F11: ='CRO1_Ins-Pro'!J8*0.8 -> 1.6 | G11: 11067 | H11: =ROUND(I11*G11,2) -> 26080.49 | I11: ='PFP2.1_FatorKa'!$E$36 -> 2.3566 | J11: =ROUND(F11*G11,2) -> 17707.2 | K11: 41728.78
A12: SICRO | B12: MO1 | C12: T1 | D12: Técnico de projetos/obra (P8147) | E12: mês | F12: ='CRO1_Ins-Pro'!J9*0.8 -> 1.6 | G12: 3091.07 | H12: 7284.42 | I12: ='PFP2.1_FatorKa'!$E$36 -> 2.3566 | J12: 4945.71 | K12: 11655.07
A13: SICRO | B13: MO1 | C13: D | D13: Desenhista (P9848) | E13: mês | F13: ='CRO1_Ins-Pro'!J10*0.8 -> 1.6 | G13: 2499.39 | H13: 5890.06 | I13: ='PFP2.1_FatorKa'!$E$36 -> 2.3566 | J13: 3999.02 | K13: 9424.1
A14: SICRO | B14: MO1 | C14: A1 | D14: Secretária (P8135) | E14: mês | F14: ='CRO1_Ins-Pro'!J11*0.8 -> 1.6 | G14: 2335.81 | H14: 5504.57 | I14: ='PFP2.1_FatorKa'!$E$36 -> 2.3566 | J14: 3737.3 | K14: 8807.31
A15: SICRO | B15: EC | C15: ECA | D15: Encargos Comp. e Adicionais | E15: mês | F15: ='CRO1_Ins-Pro'!J12*0.8 -> 8.8 | G15: =677.01+301.42+9.98 -> 988.41 | H15: 1241.25 | I15: =PFP3_FatorKd!$E$17 -> 1.2558 | J15: 8698.01 | K15: 10923
A16: PROP | B16: EC | C16: AT3 | D16: Auxilio Transporte Secretária | E16: mês | F16: ='CRO1_Ins-Pro'!J13*0.8 -> 1.6 | G16: =IF((22*5)-(G14*0.06*22/30)>0,(22*5)-(G14*0.06*22/30),0) -> 7.22436 | H16: 9.07 | I16: =PFP3_FatorKd!$E$17 -> 1.2558 | J16: 11.56 | K16: 14.51
A17: CODE | B17: LO | C17: V1 | D17: Diárias | E17: dia | F17: ='CRO1_Ins-Pro'!J14*0.8 -> 32 | G17: 239 | H17: 300.14 | I17: =PFP3_FatorKd!$E$17 -> 1.2558 | J17: 7648 | K17: 9604.48
A18: PROP | B18: LO | C18: V2 | D18: Pick-up Cab.dupla 2.8 4x4 Diesel | E18: dia | F18: ='CRO1_Ins-Pro'!J15*0.8 -> 16 | G18: 464.91 | H18: 583.83 | I18: =PFP3_FatorKd!$E$17 -> 1.2558 | J18: 7438.56 | K18: 9341.28
A19: CODE | B19: EM | C19: M1 | D19: Relatório Parcial | E19: un | F19: 0 | G19: 34.41245818 | H19: 43.22 | I19: =PFP3_FatorKd!$E$17 -> 1.2558 | J19: 0 | K19: =ROUND(F19*H19,2) -> 0
A20: CODE | B20: EM | C20: M2 | D20: Relatório Final | E20: un | F20: ='CRO1_Ins-Pro'!J17 -> 1 | G20: 1525.911339 | H20: 1916.24 | I20: =PFP3_FatorKd!$E$17 -> 1.2558 | J20: 1525.91 | K20: =ROUND(F20*H20,2) -> 1916.24
A21: CODE | B21: SU | C21: TOP | D21: Total Serviços Topográficos | E21: un | F21: 0 | G21: - | H21: ='PFP1.1_Topo'!G9 -> 13260 | I21: - | J21: - | K21: =ROUND(F21*H21,2) -> 0
A22: CODE | B22: SU | C22: GEO | D22: Total Serviços Geotécnicos | E22: un | F22: 0 | G22: - | H22: ='PFP1.2_Geo'!G16 -> 12189.68 | I22: - | J22: - | K22: =ROUND(F22*H22,2) -> 0
A23: TOTAL DOS CUSTOS DIRETOS | H23: =SUM(J8:J22) -> 87676.55
A24: TOTAL DOS ENCARGOS E DISPESAS DIVERSAS | H24: =H25-H23 -> 78644.38
A25: TOTAL DA PROPOSTA A PREÇO GLOBAL | H25: =SUM(K8:K20) -> 166320.93
A26: TOTAL DA PROPOSTA DEMAIS SERVIÇOS | H26: =SUM(K21:K22) -> 0
A27: TOTAL DA PROPOSTA | H27: =H25+H26 -> 166320.93
A28: OBSERVAÇÃO:
A29: Alocar os Insumos MO, com respectivo FatorK, dentro da categoria de vínculo contratual (celetista, autonomo, societario)
A30: Uni - unidade de medição do insumo;
A31: Qde - Quantidade do Insumo (não pode ocorrer alteração pela Licitante)
A32: CUD - Custo Unitário Direto do Insumo (sem encargos, taxas e impostos, valor não pode ser maior que o Orçado pela Codevasf)
A33: CT - Custo Total (sem encargos, taxas e impostos) - CT = Qde x CUD
A34: FatorK - Taxa de Ressarcimento de Despesas e Encargos (detalhar composição nas Planilhas "PFP2.1", "PFP2.2", "PFP3")
A35: PU - Preço Unitário do Insumo (incluído encargos, taxas e impostos) - PU = CUD x FatorK
A36: PT - Preço Total do Insumo (incluído encargos, taxas e impostos) - PT = Qde x PU
A37: P - Profissionais nível superior nas áreas de Engenharia, Química, Arquitetura, Agronomia e Veterinária, conforme disposições da Lei 4.950-A/66
A38: S - Profissionais de nível superior nas demais áreas de atuação, incluindo Arqueólogo, Biólogo, Geógrafo e Sociólogo
A39: T - Profissionais de nível médio técnico nas diversas áreas de atuação
A40: A - Profissionais de nível médio de apoio técnico-administrativo

Sheet PFP1.1_Topo
A1: SERVIÇOS TOPOGRÁFICOS/CARTOGRÁFICOS | G1: CODIGO:
G2: PFP-1.1
A3: NOME DA EMPRESA:
A5: PROJETO: | E5: CONTRATANTE: | G5: =PFP!J5 -> BASE: Out/2023
A6: =PFP!A6 -> Unidade de Beneficiamento de Pescado/CE | E6: CODEVASF (SEDE) | G6: CODE: Out/2023
A7: Cod. | B7: Base | C7: Insumos | D7: Uni | E7: Qde | F7: Preço Unitário (PU) | G7: Preço Total (PT)
A8: TP01 | B8: CODE | C8: Levantamento Topográfico Planialtimétrico Cadastral de classe I PAC ou de ordem superior | D8: ha | E8: 4 | F8: 3315 | G8: =ROUND(F8*E8,2) -> 13260
A9: TOTAL SERVIÇOS TOPOGRÁFICOS | G9: =SUM(G8:G8) -> 13260
A10: OBSERVAÇÃO:
A11: Uni - unidade de medição do insumo;
A12: Qde - Quantidade do Insumo (não pode ocorrer alteração pela Licitante)
A13: PU - Preço Unitário (composições padrão da Codevasf, já incluso o FatorK)
A14: PT - Preço Total (incluído encargos, taxas e impostos) - PT = Qde x PU

Sheet PFP1.2_Geo
A1: SERVIÇOS GEOLÓGICOS/GEOTÉCNICOS | G1: CODIGO:
G2: PFP-1.2
A3: NOME DA EMPRESA:
A5: PROJETO: | E5: CONTRATANTE: | G5: =PFP!J5 -> BASE: Out/2023
A6: =PFP!A6 -> Unidade de Beneficiamento de Pescado/CE | E6: CODEVASF (SEDE) | G6: ='PFP1.1_Topo'!G6 -> CODE: Out/2023
A7: Cod. | B7: Base | C7: Insumos | D7: Uni | E7: Qde | F7: Preço Unitário (PU) | G7: Preço Total (PT)
A8: GT 1 | B8: CODE | C8: Sondagem mista
A9: GT1.1 | B9: CODE | C9: Sondagem Mista: (Des)Mobilização por equipe | D9: un | E9: 1 | F9: 3778.97 | G9: =ROUND(F9*E9,2) -> 3778.97
A10: GT1.2 | B10: CODE | C10: Sondagem Mista: em solo (SPT) | D10: m | E10: 10 | F10: 143.88 | G10: 1438.8
A11: GT1.2.1 | B11: CODE | C11: Sondagem Mista: Desloc/Instalação 0-200 m | D11: un | E11: 1 | F11: 1006.11 | G11: =ROUND(E11*F11,2) -> 1006.11
A12: GT 2 | B12: CODE | C12: Sondagem a Percussão SPT
A13: GT2.1 | B13: CODE | C13: Sondagem Percussão: (Des)Mobilização por equipe | D13: un | E13: 2 | F13: 995.4 | G13: 1990.8
A14: GT2.2 | B14: CODE | C14: Sondagem Percursão: com SPT | D14: m | E14: 30 | F14: 87.3 | G14: 2619
A15: GT2.2.2.1 | B15: CODE | C15: Sondagem Percursão: Desloc/Instalação 0-200 m | D15: un | E15: 3 | F15: 452 | G15: =ROUND(E15*F15,2) -> 1356
A16: TOTAL SERVIÇOS GEOTÉCNICOS | G16: =SUM(G8:G15) -> 12189.68
A17: LEGENDA:
A18: Uni - unidade de medição do insumo;
A19: Qde - Quantidade do Insumo (não pode ocorrer alteração pela Licitante)
A20: PU - Preço Unitário (composições padrão da Codevasf, já incluso o FatorK)
A21: PT - Preço Total (incluído encargos, taxas e impostos) - PT = Qde x PU

Sheet PFP2.1_FatorKa
A1: DETALHAMENTO DOS ENCARGOS SOCIAIS: Ka | F1: CODIGO:
F2: PFP-2.1
A3: NOME DA CONSULTORA:
A5: PROJETO: | C5: CONTRATANTE: | F5: =PFP!J5 -> BASE: Out/2023
A6: =PFP!A6 -> Unidade de Beneficiamento de Pescado/CE | C6: CODEVASF (SEDE) | F6: SINAPI/CE: Out/2023
A7: Cod | B7: DESCRIÇÃO | E7: % | F7: R$
A8: A | B8: ENCARGOS SOCIAIS BÁSICOS | E8: =ROUND(SUM(E9:E17),4) -> 0.378 | F8: =ROUND(E8*SUMIF(PFP!$B$8:$B$22,"MO1",PFP!$J$8:$J$22),2) -> 59401.85
A9: A1 | B9: INSS | E9: 0.2 | F9: =ROUND(E9*SUMIF(PFP!$B$8:$B$22,"MO1",PFP!$J$8:$J$22),2) -> 31429.55
A10: A2 | B10: SESI | E10: 0.015 | F10: =ROUND(E10*SUMIF(PFP!$B$8:$B$22,"MO1",PFP!$J$8:$J$22),2) -> 2357.22
A11: A3 | B11: SENAI | E11: 0.01 | F11: =ROUND(E11*SUMIF(PFP!$B$8:$B$22,"MO1",PFP!$J$8:$J$22),2) -> 1571.48
A12: A4 | B12: INCRA | E12: 0.002 | F12: =ROUND(E12*SUMIF(PFP!$B$8:$B$22,"MO1",PFP!$J$8:$J$22),2) -> 314.3
A13: A5 | B13: SEBRAE | E13: 0.006 | F13: =ROUND(E13*SUMIF(PFP!$B$8:$B$22,"MO1",PFP!$J$8:$J$22),2) -> 942.89
A14: A6 | B14: Salário Educação | E14: 0.025 | F14: =ROUND(E14*SUMIF(PFP!$B$8:$B$22,"MO1",PFP!$J$8:$J$22),2) -> 3928.69
A15: A7 | B15: Seguro Contra Acidentes de Trabalho | E15: 0.03 | F15: =ROUND(E15*SUMIF(PFP!$B$8:$B$22,"MO1",PFP!$J$8:$J$22),2) -> 4714.43
A16: A8 | B16: FGTS | E16: 0.08 | F16: =ROUND(E16*SUMIF(PFP!$B$8:$B$22,"MO1",PFP!$J$8:$J$22),2) -> 12571.82
A17: A9 | B17: Seconci | E17: 0.01 | F17: =ROUND(E17*SUMIF(PFP!$B$8:$B$22,"MO1",PFP!$J$8:$J$22),2) -> 1571.48
A18: B | B18: ENCARGOS SOCIAIS QUE RECEBEM INCIDÊNCIA DE "A" | E18: =ROUND(SUM(E19:E25),4) -> 0.1727 | F18: =ROUND(E18*SUMIF(PFP!$B$8:$B$22,"MO1",PFP!$J$8:$J$22),2) -> 27139.42
A19: B3 | B19: Auxílio Enfermidade | E19: 0.0067 | F19: =ROUND(E19*SUMIF(PFP!$B$8:$B$22,"MO1",PFP!$J$8:$J$22),2) -> 1052.89
A20: B4 | B20: 13º Salário | E20: 0.0833 | F20: =ROUND(E20*SUMIF(PFP!$B$8:$B$22,"MO1",PFP!$J$8:$J$22),2) -> 13090.41
A21: B5 | B21: Licença Paternidade | E21: 0.0006 | F21: =ROUND(E21*SUMIF(PFP!$B$8:$B$22,"MO1",PFP!$J$8:$J$22),2) -> 94.29
A22: B6 | B22: Faltas Justificadas | E22: 0.0056 | F22: =ROUND(E22*SUMIF(PFP!$B$8:$B$22,"MO1",PFP!$J$8:$J$22),2) -> 880.03
A23: B8 | B23: Auxílio Acidente de Trabalho | E23: 0.0008 | F23: =ROUND(E23*SUMIF(PFP!$B$8:$B$22,"MO1",PFP!$J$8:$J$22),2) -> 125.72
A24: B9 | B24: Férias Gozadas | E24: 0.0754 | F24: =ROUND(E24*SUMIF(PFP!$B$8:$B$22,"MO1",PFP!$J$8:$J$22),2) -> 11848.94
A25: B10 | B25: Salário Maternidade | E25: 0.0003 | F25: =ROUND(E25*SUMIF(PFP!$B$8:$B$22,"MO1",PFP!$J$8:$J$22),2) -> 47.14
A26: C | B26: ENCARGOS SOCIAIS QUE NÃO RECEBEM INCIDÊNCIA DE "A" | E26: =ROUND(SUM(E27:E31),4) -> 0.1067 | F26: =ROUND(E26*SUMIF(PFP!$B$8:$B$22,"MO1",PFP!$J$8:$J$22),2) -> 16767.66
A27: C1 | B27: Aviso Prévio Indenizado | E27: 0.044 | F27: =ROUND(E27*SUMIF(PFP!$B$8:$B$22,"MO1",PFP!$J$8:$J$22),2) -> 6914.5
A28: C2 | B28: Aviso Prévio Trabalhado | E28: 0.001 | F28: =ROUND(E28*SUMIF(PFP!$B$8:$B$22,"MO1",PFP!$J$8:$J$22),2) -> 157.15
A29: C3 | B29: Férias Indenizadas | E29: 0.0297 | F29: =ROUND(E29*SUMIF(PFP!$B$8:$B$22,"MO1",PFP!$J$8:$J$22),2) -> 4667.29
A30: C4 | B30: Depósito Rescisão Sem Justa Causa | E30: 0.0283 | F30: =ROUND(E30*SUMIF(PFP!$B$8:$B$22,"MO1",PFP!$J$8:$J$22),2) -> 4447.28
A31: C5 | B31: Indenização Adicional | E31: 0.0037 | F31: =ROUND(E31*SUMIF(PFP!$B$8:$B$22,"MO1",PFP!$J$8:$J$22),2) -> 581.45
A32: D | B32: REINCIDÊNCIAS | E32: =ROUND(SUM(E33:E34),4) -> 0.0692 | F32: =ROUND(E32*SUMIF(PFP!$B$8:$B$22,"MO1",PFP!$J$8:$J$22),2) -> 10874.62
A33: D1 | B33: Reincidência de "A" sobre "B" | E33: =ROUND(E8*E18,4) -> 0.0653 | F33: =ROUND(E33*SUMIF(PFP!$B$8:$B$22,"MO1",PFP!$J$8:$J$22),2) -> 10261.75
A34: D2 | B34: Reincidência de "A" sobre Aviso Prévio Trabalhado e reincidência do FGTS sobre Aviso Prévio Indenizado | E34: =ROUND((E28*E8)+(E27*E16),4) -> 0.0039 | F34: =ROUND(E34*SUMIF(PFP!$B$8:$B$22,"MO1",PFP!$J$8:$J$22),2) -> 612.88
A35: K1a | B35: ENCARGOS SOCIAIS | E35: =ROUND(E8+E18+E26+E32,4) -> 0.7266 | F35: =ROUND(E35*SUMIF(PFP!$B$8:$B$22,"MO1",PFP!$J$8:$J$22),2) -> 114183.56
A36: Ka | B36: TAXA DE RESSARCIMENTO DE DESPESAS E ENCARGOS SOBRE MO1 | E36: =ROUND((1+E35+PFP3_FatorKd!E13)*(1+PFP3_FatorKd!E12)*(1+PFP3_FatorKd!E8),4) -> 2.3566
A37: OBSERVAÇÃO: CELETISTAS E EQUIVALENTES
A38: 1 - DISCRIMINAR OS ENCARGOS SOCIAIS COM SEUS RESPECTIVOS PERCENTUAS TOTALIZANDO OS MESMOS.
A39: 2 - APLICAR O % TOTAL P/ CALCULAR OS E. SOCIAIS INCIDENTES NA MÃO-DE-OBRA CELETISTAS
A40: Ka - Taxa de Ressarcimento de Despesas e Encargos sobre a Mão de Obra CELETISTA (incide apenas no Insumo Codigo MO1)
A41: Ka = (1 + K1 + K2) x (1 + K3) x (1 + K4)

Sheet PFP2.2_FatorKb
A1: DETALHAMENTO DOS ENCARGOS SOCIAIS: Kb | F1: CODIGO:
F2: PFP-2.2
A3: NOME DA CONSULTORA:
A5: PROJETO: | C5: CONTRATANTE: | F5: ='PFP2.1_FatorKa'!F5 -> BASE: Out/2023
A6: =PFP!A6 -> Unidade de Beneficiamento de Pescado/CE | C6: CODEVASF (SEDE) | F6: ='PFP2.1_FatorKa'!F6 -> SINAPI/CE: Out/2023
A7: Cod | B7: DESCRIÇÃO | E7: % | F7: R$
A8: A | B8: ENCARGOS SOCIAIS BÁSICOS | E8: =ROUND(SUM(E9:E17),4) -> 0.2 | F8: =ROUND(E8*SUMIF(PFP!$B$8:$B$22,"MO2",PFP!$J$8:$J$22),2) -> 0
A9: A1 | B9: INSS | E9: 0.2 | F9: =ROUND(E9*SUMIF(PFP!$B$8:$B$22,"MO2",PFP!$J$8:$J$22),2) -> 0
A10: A2 | B10: SESI | E10: 0 | F10: =ROUND(E10*SUMIF(PFP!$B$8:$B$22,"MO2",PFP!$J$8:$J$22),2) -> 0
A11: A3 | B11: SENAI | E11: 0 | F11: =ROUND(E11*SUMIF(PFP!$B$8:$B$22,"MO2",PFP!$J$8:$J$22),2) -> 0
A12: A4 | B12: INCRA | E12: 0 | F12: =ROUND(E12*SUMIF(PFP!$B$8:$B$22,"MO2",PFP!$J$8:$J$22),2) -> 0
A13: A5 | B13: SEBRAE | E13: 0 | F13: =ROUND(E13*SUMIF(PFP!$B$8:$B$22,"MO2",PFP!$J$8:$J$22),2) -> 0
A14: A6 | B14: Salário Educação | E14: 0 | F14: =ROUND(E14*SUMIF(PFP!$B$8:$B$22,"MO2",PFP!$J$8:$J$22),2) -> 0
A15: A7 | B15: Seguro Contra Acidentes de Trabalho | E15: 0 | F15: =ROUND(E15*SUMIF(PFP!$B$8:$B$22,"MO2",PFP!$J$8:$J$22),2) -> 0
A16: A8 | B16: FGTS | E16: 0 | F16: =ROUND(E16*SUMIF(PFP!$B$8:$B$22,"MO2",PFP!$J$8:$J$22),2) -> 0
A17: A9 | B17: SECONCI | E17: 0 | F17: =ROUND(E17*SUMIF(PFP!$B$8:$B$22,"MO2",PFP!$J$8:$J$22),2) -> 0
A18: B | B18: ENCARGOS SOCIAIS QUE RECEBEM INCIDÊNCIA DE "A" | E18: =ROUND(SUM(E19:E25),4) -> 0 | F18: =ROUND(E18*SUMIF(PFP!$B$8:$B$22,"MO2",PFP!$J$8:$J$22),2) -> 0
A19: B3 | B19: Auxílio Enfermidade | E19: 0 | F19: =ROUND(E19*SUMIF(PFP!$B$8:$B$22,"MO2",PFP!$J$8:$J$22),2) -> 0
A20: B4 | B20: 13º Salário | E20: 0 | F20: =ROUND(E20*SUMIF(PFP!$B$8:$B$22,"MO2",PFP!$J$8:$J$22),2) -> 0
A21: B5 | B21: Licença Paternidade | E21: 0 | F21: =ROUND(E21*SUMIF(PFP!$B$8:$B$22,"MO2",PFP!$J$8:$J$22),2) -> 0
A22: B6 | B22: Faltas Justificadas | E22: 0 | F22: =ROUND(E22*SUMIF(PFP!$B$8:$B$22,"MO2",PFP!$J$8:$J$22),2) -> 0
A23: B8 | B23: Auxílio Acidente de Trabalho | E23: 0 | F23: =ROUND(E23*SUMIF(PFP!$B$8:$B$22,"MO2",PFP!$J$8:$J$22),2) -> 0
A24: B9 | B24: Férias Gozadas | E24: 0 | F24: =ROUND(E24*SUMIF(PFP!$B$8:$B$22,"MO2",PFP!$J$8:$J$22),2) -> 0
A25: B10 | B25: Salário Maternidade | E25: 0 | F25: =ROUND(E25*SUMIF(PFP!$B$8:$B$22,"MO2",PFP!$J$8:$J$22),2) -> 0
A26: C | B26: ENCARGOS SOCIAIS QUE NÃO RECEBEM INCIDÊNCIA DE "A" | E26: =ROUND(SUM(E27:E31),4) -> 0 | F26: =ROUND(E26*SUMIF(PFP!$B$8:$B$22,"MO2",PFP!$J$8:$J$22),2) -> 0
A27: C1 | B27: Aviso Prévio Indenizado | E27: 0 | F27: =ROUND(E27*SUMIF(PFP!$B$8:$B$22,"MO2",PFP!$J$8:$J$22),2) -> 0
A28: C2 | B28: Aviso Prévio Trabalhado | E28: 0 | F28: =ROUND(E28*SUMIF(PFP!$B$8:$B$22,"MO2",PFP!$J$8:$J$22),2) -> 0
A29: C3 | B29: Férias Indenizadas | E29: 0 | F29: =ROUND(E29*SUMIF(PFP!$B$8:$B$22,"MO2",PFP!$J$8:$J$22),2) -> 0
A30: C4 | B30: Depósito Rescisão Sem Justa Causa | E30: 0 | F30: =ROUND(E30*SUMIF(PFP!$B$8:$B$22,"MO2",PFP!$J$8:$J$22),2) -> 0
A31: C5 | B31: Indenização Adicional | E31: 0 | F31: =ROUND(E31*SUMIF(PFP!$B$8:$B$22,"MO2",PFP!$J$8:$J$22),2) -> 0
A32: D | B32: REINCIDÊNCIAS | E32: =ROUND(SUM(E33:E34),4) -> 0 | F32: =ROUND(E32*SUMIF(PFP!$B$8:$B$22,"MO2",PFP!$J$8:$J$22),2) -> 0
A33: D1 | B33: Reincidência de "A" sobre "B" | E33: =ROUND(E8*E18,4) -> 0 | F33: =ROUND(E33*SUMIF(PFP!$B$8:$B$22,"MO2",PFP!$J$8:$J$22),2) -> 0
A34: D2 | B34: Reincidência de "A" sobre Aviso Prévio Trabalhado e reincidência do FGTS sobre Aviso Prévio Indenizado | E34: =ROUND(E8*E28,4)+ROUND(E27*E11,4) -> 0 | F34: =ROUND(E34*SUMIF(PFP!$B$8:$B$22,"MO2",PFP!$J$8:$J$22),2) -> 0
A35: K1b | B35: ENCARGOS SOCIAIS | E35: =ROUND(E8+E18+E26+E32,4) -> 0.2 | F35: =ROUND(E35*SUMIF(PFP!$B$8:$B$22,"MO2",PFP!$J$8:$J$22),2) -> 0
A36: Kb | B36: TAXA DE RESSARCIMENTO DE DESPESAS E ENCARGOS SOBRE MO2 | E36: =ROUND((1+E35+PFP3_FatorKd!E13)*(1+PFP3_FatorKd!E12)*(1+PFP3_FatorKd!E8),4) -> 1.6953
A37: OBSERVAÇÃO: AUTÔNOMOS E EQUIVALENTES
A38: 1 - DISCRIMINAR OS ENCARGOS SOCIAIS COM SEUS RESPECTIVOS PERCENTUAS TOTALIZANDO OS MESMOS.
A39: 2 - APLICAR O % TOTAL P/ CALCULAR OS E. SOCIAIS INCIDENTES NA MÃO-DE-OBRA AUTONÔMOS
A40: Kb - Taxa de Ressarcimento de Despesas e Encargos sobre a Mão de Obra AUTONÔMA (incide apenas no Insumo Codigo MO2)
A41: Kb = (1 + K1 + K2) x (1 + K3) x (1 + K4)

Sheet PFP2.3_FatorKc
A1: DETALHAMENTO DOS ENCARGOS SOCIAIS: Kc | F1: CODIGO:
F2: PFP-2.3
A3: NOME DA CONSULTORA:
A5: PROJETO: | C5: CONTRATANTE: | F5: ='PFP2.2_FatorKb'!F5 -> BASE: Out/2023
A6: =PFP!A6 -> Unidade de Beneficiamento de Pescado/CE | C6: CODEVASF (SEDE) | F6: ='PFP2.2_FatorKb'!F6 -> SINAPI/CE: Out/2023
A7: Cod | B7: DESCRIÇÃO | E7: % | F7: R$
A8: A | B8: ENCARGOS SOCIAIS BÁSICOS | E8: =SUM(E9:E17) -> 0 | F8: =ROUND(E8*SUMIF(PFP!$B$8:$B$22,"MO3",PFP!$J$8:$J$22),2) -> 0
A9: A1 | B9: INSS | E9: 0 | F9: =ROUND(E9*SUMIF(PFP!$B$8:$B$22,"MO3",PFP!$J$8:$J$22),2) -> 0
A10: A2 | B10: SESI | E10: 0 | F10: =ROUND(E10*SUMIF(PFP!$B$8:$B$22,"MO3",PFP!$J$8:$J$22),2) -> 0
A11: A3 | B11: SENAI | E11: 0 | F11: =ROUND(E11*SUMIF(PFP!$B$8:$B$22,"MO3",PFP!$J$8:$J$22),2) -> 0
A12: A4 | B12: INCRA | E12: 0 | F12: =ROUND(E12*SUMIF(PFP!$B$8:$B$22,"MO3",PFP!$J$8:$J$22),2) -> 0
A13: A5 | B13: SEBRAE | E13: 0 | F13: =ROUND(E13*SUMIF(PFP!$B$8:$B$22,"MO3",PFP!$J$8:$J$22),2) -> 0
A14: A6 | B14: Salário Educação | E14: 0 | F14: =ROUND(E14*SUMIF(PFP!$B$8:$B$22,"MO3",PFP!$J$8:$J$22),2) -> 0
A15: A7 | B15: Seguro Contra Acidentes de Trabalho | E15: 0 | F15: =ROUND(E15*SUMIF(PFP!$B$8:$B$22,"MO3",PFP!$J$8:$J$22),2) -> 0
A16: A8 | B16: FGTS | E16: 0 | F16: =ROUND(E16*SUMIF(PFP!$B$8:$B$22,"MO3",PFP!$J$8:$J$22),2) -> 0
A17: A9 | B17: SECONCI | E17: 0 | F17: =ROUND(E17*SUMIF(PFP!$B$8:$B$22,"MO3",PFP!$J$8:$J$22),2) -> 0
A18: B | B18: ENCARGOS SOCIAIS QUE RECEBEM INCIDÊNCIA DE "A" | E18: =ROUND(SUM(E19:E25),4) -> 0 | F18: =ROUND(E18*SUMIF(PFP!$B$8:$B$22,"MO3",PFP!$J$8:$J$22),2) -> 0
A19: B3 | B19: Auxílio Enfermidade | E19: 0 | F19: =ROUND(E19*SUMIF(PFP!$B$8:$B$22,"MO3",PFP!$J$8:$J$22),2) -> 0
A20: B4 | B20: 13º Salário | E20: 0 | F20: =ROUND(E20*SUMIF(PFP!$B$8:$B$22,"MO3",PFP!$J$8:$J$22),2) -> 0
A21: B5 | B21: Licença Paternidade | E21: 0 | F21: =ROUND(E21*SUMIF(PFP!$B$8:$B$22,"MO3",PFP!$J$8:$J$22),2) -> 0
A22: B6 | B22: Faltas Justificadas | E22: 0 | F22: =ROUND(E22*SUMIF(PFP!$B$8:$B$22,"MO3",PFP!$J$8:$J$22),2) -> 0
A23: B8 | B23: Auxílio Acidente de Trabalho | E23: 0 | F23: =ROUND(E23*SUMIF(PFP!$B$8:$B$22,"MO3",PFP!$J$8:$J$22),2) -> 0
A24: B9 | B24: Férias Gozadas | E24: 0 | F24: =ROUND(E24*SUMIF(PFP!$B$8:$B$22,"MO3",PFP!$J$8:$J$22),2) -> 0
A25: B10 | B25: Salário Maternidade | E25: 0 | F25: =ROUND(E25*SUMIF(PFP!$B$8:$B$22,"MO3",PFP!$J$8:$J$22),2) -> 0
A26: C | B26: ENCARGOS SOCIAIS QUE NÃO RECEBEM INCIDÊNCIA DE "A" | E26: =ROUND(SUM(E27:E31),4) -> 0 | F26: =ROUND(E26*SUMIF(PFP!$B$8:$B$22,"MO3",PFP!$J$8:$J$22),2) -> 0
A27: C1 | B27: Aviso Prévio Indenizado | E27: 0 | F27: =ROUND(E27*SUMIF(PFP!$B$8:$B$22,"MO3",PFP!$J$8:$J$22),2) -> 0
A28: C2 | B28: Aviso Prévio Trabalhado | E28: 0 | F28: =ROUND(E28*SUMIF(PFP!$B$8:$B$22,"MO3",PFP!$J$8:$J$22),2) -> 0
A29: C3 | B29: Férias Indenizadas | E29: 0 | F29: =ROUND(E29*SUMIF(PFP!$B$8:$B$22,"MO3",PFP!$J$8:$J$22),2) -> 0
A30: C4 | B30: Depósito Rescisão Sem Justa Causa | E30: 0 | F30: =ROUND(E30*SUMIF(PFP!$B$8:$B$22,"MO3",PFP!$J$8:$J$22),2) -> 0
A31: C5 | B31: Indenização Adicional | E31: 0 | F31: =ROUND(E31*SUMIF(PFP!$B$8:$B$22,"MO3",PFP!$J$8:$J$22),2) -> 0
A32: D | B32: REINCIDÊNCIAS | E32: =ROUND(SUM(E33:E34),4) -> 0 | F32: =ROUND(E32*SUMIF(PFP!$B$8:$B$22,"MO3",PFP!$J$8:$J$22),2) -> 0
A33: D1 | B33: Reincidência de "A" sobre "B" | E33: =ROUND(E8*E18,4) -> 0 | F33: =ROUND(E33*SUMIF(PFP!$B$8:$B$22,"MO3",PFP!$J$8:$J$22),2) -> 0
A34: D2 | B34: Reincidência de "A" sobre Aviso Prévio Trabalhado e reincidência do FGTS sobre Aviso Prévio Indenizado | E34: =ROUND(E8*E28,4)+ROUND(E27*E11,4) -> 0 | F34: =ROUND(E34*SUMIF(PFP!$B$8:$B$22,"MO3",PFP!$J$8:$J$22),2) -> 0
A35: K1c | B35: ENCARGOS SOCIAIS | E35: =ROUND(E8+E18+E26+E32,4) -> 0 | F35: =ROUND(E35*SUMIF(PFP!$B$8:$B$22,"MO3",PFP!$J$8:$J$22),2) -> 0
A36: Kc | B36: TAXA DE RESSARCIMENTO DE DESPESAS E ENCARGOS SOBRE MO3 | E36: =ROUND((1+E35+PFP3_FatorKd!E13)*(1+PFP3_FatorKd!E12)*(1+PFP3_FatorKd!E8),4) -> 1.4441
A37: OBSERVAÇÃO: SOCIETÁRIOS E EQUIVALENTES
A38: 1 - DISCRIMINAR OS ENCARGOS SOCIAIS COM SEUS RESPECTIVOS PERCENTUAS TOTALIZANDO OS MESMOS.
A39: 2 - APLICAR O % TOTAL P/ CALCULAR OS E. SOCIAIS INCIDENTES NA MÃO-DE-OBRA DE SOCIETÁRIOS
A40: Kc - Taxa de Ressarcimento de Despesas e Encargos sobre a Mão de Obra SOCIETÁRIA (incide apenas no Insumo Codigo MO3)
A41: Kc = (1 + K1 + K2) x (1 + K3) x (1 + K4)

Sheet PFP3_FatorKd
A1: DESPESAS FISCAIS E CUSTOS DIVERSOS: Kd | F1: CODIGO:
F2: PFP-3
A3: NOME DA CONSULTORA:
A5: PROJETO: | C5: CONTRATANTE: | F5: ='PFP2.3_FatorKc'!F5 -> BASE: Out/2023
A6: =PFP!A6 -> Unidade de Beneficiamento de Pescado/CE | C6: CODEVASF (SEDE) | F6: ='PFP2.3_FatorKc'!F6 -> SINAPI/CE: Out/2023
A7: Cod | B7: DESCRIÇÃO1 | D7: % preço2 | E7: % custo4 | F7: R$
A8: K4 | B8: TRIBUTOS | D8: =ROUND(D9+D10+D11,4) -> 0.124 | E8: =ROUND(E9+E10+E11,4) -> 0.1416 | F8: =E8*SUM(SUMIF(PFP!$B$8:$B$22,"MO1",PFP!$J$8:$J$22)*(1+'PFP2.1_FatorKa'!$E$35)+SUMIF(PFP!$B$8:$B$22,"MO2",PFP!$J$8:$J$22)*(1+'PFP2.2_FatorKb'!$E$35)+SUMIF(PFP!$B$8:$B$22,"<>MO*",PFP!$J$8:$J$22)+$F$13+$F$12) -> 58350.84627
A9: K4.1 | B9: ISS | D9: 0.05 | E9: =ROUND((1/(1-$D$8))*D9,4) -> 0.0571 | F9: =E9*SUM(SUMIF(PFP!$B$8:$B$22,"MO1",PFP!$J$8:$J$22)*(1+'PFP2.1_FatorKa'!$E$35)+SUMIF(PFP!$B$8:$B$22,"MO2",PFP!$J$8:$J$22)*(1+'PFP2.2_FatorKb'!$E$35)+SUMIF(PFP!$B$8:$B$22,"<>MO*",PFP!$J$8:$J$22)+$F$13+$F$12) -> 23529.89634
A10: K4.2 | B10: PIS3 - aliquota efetiva aplicavel percentual-desconto | D10: =ROUND(1.65%*0.8,4) -> 0.0132 | E10: =ROUND((1/(1-$D$8))*D10,4) -> 0.0151 | F10: =E10*SUM(SUMIF(PFP!$B$8:$B$22,"MO1",PFP!$J$8:$J$22)*(1+'PFP2.1_FatorKa'!$E$35)+SUMIF(PFP!$B$8:$B$22,"MO2",PFP!$J$8:$J$22)*(1+'PFP2.2_FatorKb'!$E$35)+SUMIF(PFP!$B$8:$B$22,"<>MO*",PFP!$J$8:$J$22)+$F$13+$F$12) -> 6222.44194
A11: K4.3 | B11: COFINS3 - aliquota efetiva aplicavel percentual-desconto | D11: =ROUND(7.6%*0.8,4) -> 0.0608 | E11: =ROUND((1/(1-$D$8))*D11,4) -> 0.0694 | F11: =E11*SUM(SUMIF(PFP!$B$8:$B$22,"MO1",PFP!$J$8:$J$22)*(1+'PFP2.1_FatorKa'!$E$35)+SUMIF(PFP!$B$8:$B$22,"MO2",PFP!$J$8:$J$22)*(1+'PFP2.2_FatorKb'!$E$35)+SUMIF(PFP!$B$8:$B$22,"<>MO*",PFP!$J$8:$J$22)+$F$13+$F$12) -> 28598.50799
A12: K3 | B12: REMUNERAÇÃO DA EMPRESA (LUCRO) | E12: 0.1 | F12: =E12*SUM(SUMIF(PFP!$B$8:$B$22,"MO1",PFP!$J$8:$J$22)*(1+'PFP2.1_FatorKa'!$E$35)+SUMIF(PFP!$B$8:$B$22,"MO2",PFP!$J$8:$J$22)*(1+'PFP2.2_FatorKb'!$E$35)+SUMIF(PFP!$B$8:$B$22,"<>MO*",PFP!$J$8:$J$22)+$F$13) -> 37462.02251
A13: K2 | B13: CUSTOS DA ADMINISTRAÇÃO CENTRAL | E13: =ROUND(SUM(E14:E16),4) -> 0.15 | F13: =ROUND(E13*SUMIF(PFP!$B$8:$B$22,"MO*",PFP!$J$8:$J$22),2) -> 31230.32
A14: K2.1 | B14: Custos da administração central da empresa (diretoria, pessoal técnico de apoio e pessoal administrativo não diretamente vinculado à prestação dos serviços) | E14: 0.1 | F14: =ROUND(E14*SUMIF(PFP!$B$8:$B$22,"MO*",PFP!$J$8:$J$22),2) -> 20820.21
A15: K2.2 | B15: Outras despesas que afetam o custo de produção como treinamento, biblioteca, programa de qualidade, programa de benefícios, auditoria interna e externa | E15: 0.03 | F15: =ROUND(E15*SUMIF(PFP!$B$8:$B$22,"MO*",PFP!$J$8:$J$22),2) -> 6246.06
A16: K2.3 | B16: Despesas fixas e variaveis com patrimônio, aluguéis, comunicação, manutenção e transporte não diretamente relacionados com o custo direto dos serviços | E16: 0.02 | F16: =ROUND(E16*SUMIF(PFP!$B$8:$B$22,"MO*",PFP!$J$8:$J$22),2) -> 4164.04
A17: Kd | B17: TAXA RESSARCIMENTO DE DESPESAS SOBRE CUSTOS DIVERSOS | E17: =ROUND((1+E12)*(1+E8),4) -> 1.2558
A18: NOME DO INFORMANTE: | E18: QUALIFICAÇÃO:
A20: ASSINATURA: | E20: DATA:
A22: Observação:
A23: 1 - RELACIONAR OS CUSTOS DE ADMINISTRAÇÃO COM RESPECTIVOS PERCENTUAIS INCIDENTES NA MÃO -DE-OBRA
A24: 1 - DISCRIMINAR OS TRIBUTOS QUE INCIDEM SOBRE OS CUSTOS DA PRESTAÇÃO DOS SERVIÇOS
A25: 2 - K4 = INDICAR % DE CADA TRIBUTO E A SOMA DOS MESMOS (ex: ISS 5% + PIS 1,65% + COFINS 7,60% = 14,25%)
A26: 3 - PIS e COFINS, Regime de Incidencia Acumulativa (0,65% e 3,00% - sem percentual de desconto) ou em Regime de Incidencia Não Acumulativa (1,65% e 7,60% - aplicável percentual de desconto) de acordo com a forma de apuração do lucro no IRPJ. APRESENTAR COMPROVANTES de aproveitamento de créditos tributários dos últimos 12 meses em caso de aplicação de "percentual de desconto".
A27: 4 - AS DESPESAS FISCAIS (K4) INCIDEM SOBRE O TOTAL DA FATURA E NÃO SOBRE OS CUSTOS INCORRIDOS,
A28: DEVENDO SER CALCULADO O K4' APLICANDO-SE A SEGUINTE FÓRMULA:
A29: K4' = { [ 1 / ( 1 - K4) ] - 1 } x 100
A30: =CONCATENATE(" K4' = { [ 1 / ( 1 - ",D8," ) ] - 1 } x 100") -> K4' = { [ 1 / ( 1 - 0,124 ) ] - 1 } x 100
A31: Kc - Taxa de Ressarcimento de Despesas sobre Custos Diversos (incide sobre os Insumos Codigo DP e EM)
A32: Kc = (1 + K3) x (1 + K4)
A33: K2 - Incide sobre o Custo Total (CT) da Mão de Obra (MO* = MO1 + MO2)
A34: K3 - Incide sobre o Custo Total (CT) Mão de Obra com encargos (MO1 x Ka ou MO2 x Kb), demais Custos (DP e EM), e Custos da Administração Central (K2)
A35: K4 - Incide sobre o Custo Total (CT) Mão de Obra com encargos (MO1 x Ka ou MO2 x Kb), demais Custos (DP e EM), e Custos da Administração Central (K2) e Lucro (K3)

Sheet CRO1_Ins-Pro
A1: INSUMOS POR ETAPA/PRODUTO | J1: CÓDIGO:
J2: CRO-1
A3: Cod. | B3: Categoria / Insumo | C3: Uni | D3: Qde | E3: CUD | F3: PU | G3: FatorK | H3: E1. EVTEA | I3: E2. AMB | J3: E3. PB
G4: Meses | H4: =COUNTA('CRO2_Ins-Mes'!F45:U45)-COUNTIF('CRO2_Ins-Mes'!F45:U45,0) -> 2 | I4: =COUNTA('CRO2_Ins-Mes'!F59:U59)-COUNTIF('CRO2_Ins-Mes'!F59:U59,0) -> 2 | J4: =COUNTA('CRO2_Ins-Mes'!F73:U73)-COUNTIF('CRO2_Ins-Mes'!F73:U73,0) -> 2
A5: =PFP!C8 -> P0 | B5: =PFP!D8 -> Engenheiro coordenador (P8061) | C5: mês | D5: =SUM(H5:J5) -> 3 | E5: =PFP!G8 -> 17018.13 | F5: =PFP!H8 -> 24575.88 | G5: =PFP!I8 -> 1.4441 | H5: ='CRO2_Ins-Mes'!E32 -> 1 | I5: ='CRO2_Ins-Mes'!E46 -> 1 | J5: ='CRO2_Ins-Mes'!E60 -> 1
A6: =PFP!C9 -> P1 | B6: =PFP!D9 -> Engenheiro sênior (P8067) | C6: mês | D6: 0 | E6: =PFP!G9 -> 14672.91 | F6: =PFP!H9 -> 24874.98 | G6: =PFP!I9 -> 1.6953 | H6: ='CRO2_Ins-Mes'!E33 -> 0 | I6: ='CRO2_Ins-Mes'!E47 -> 0 | J6: ='CRO2_Ins-Mes'!E61 -> 0
A7: =PFP!C10 -> P2 | B7: =PFP!D10 -> Engenheiro pleno (P8066) | C7: mês | D7: 5 | E7: =PFP!G10 -> 11469.24 | F7: =PFP!H10 -> 27028.41 | G7: =PFP!I10 -> 2.3566 | H7: ='CRO2_Ins-Mes'!E34 -> 2 | I7: ='CRO2_Ins-Mes'!E48 -> 1 | J7: ='CRO2_Ins-Mes'!E62 -> 2
A8: =PFP!C11 -> P3 | B8: =PFP!D11 -> Engenheiro júnior (P8065) | C8: mês | D8: 5 | E8: =PFP!G11 -> 11067 | F8: =PFP!H11 -> 26080.49 | G8: =PFP!I11 -> 2.3566 | H8: ='CRO2_Ins-Mes'!E35 -> 2 | I8: ='CRO2_Ins-Mes'!E49 -> 1 | J8: ='CRO2_Ins-Mes'!E63 -> 2
A9: =PFP!C12 -> T1 | B9: =PFP!D12 -> Técnico de projetos/obra (P8147) | C9: mês | D9: 5 | E9: =PFP!G12 -> 3091.07 | F9: =PFP!H12 -> 7284.42 | G9: =PFP!I12 -> 2.3566 | H9: ='CRO2_Ins-Mes'!E36 -> 2 | I9: ='CRO2_Ins-Mes'!E50 -> 1 | J9: ='CRO2_Ins-Mes'!E64 -> 2
A10: =PFP!C13 -> D | B10: =PFP!D13 -> Desenhista (P9848) | C10: mês | D10: 6 | E10: =PFP!G13 -> 2499.39 | F10: =PFP!H13 -> 5890.06 | G10: =PFP!I13 -> 2.3566 | H10: ='CRO2_Ins-Mes'!E37 -> 2 | I10: ='CRO2_Ins-Mes'!E51 -> 2 | J10: ='CRO2_Ins-Mes'!E65 -> 2
A11: =PFP!C14 -> A1 | B11: =PFP!D14 -> Secretária (P8135) | C11: mês | D11: 6 | E11: =PFP!G14 -> 2335.81 | F11: =PFP!H14 -> 5504.57 | G11: =PFP!I14 -> 2.3566 | H11: ='CRO2_Ins-Mes'!E38 -> 2 | I11: ='CRO2_Ins-Mes'!E52 -> 2 | J11: ='CRO2_Ins-Mes'!E66 -> 2
A12: =PFP!C15 -> ECA | B12: =PFP!D15 -> Encargos Comp. e Adicionais | C12: mês | D12: 30 | E12: =PFP!G15 -> 988.41 | F12: =PFP!H15 -> 1241.25 | G12: =PFP!I15 -> 1.2558 | H12: =SUM(H5:H11) -> 11 | I12: =SUM(I5:I11) -> 8 | J12: =SUM(J5:J11) -> 11
A13: =PFP!C16 -> AT3 | B13: =PFP!D16 -> Auxilio Transporte Secretária | C13: mês | D13: 6 | E13: =PFP!G16 -> 7.22436 | F13: =PFP!H16 -> 9.07 | G13: =PFP!I16 -> 1.2558 | H13: =H11 -> 2 | I13: =I11 -> 2 | J13: 2
A14: =PFP!C17 -> V1 | B14: =PFP!D17 -> Diárias | C14: dia | D14: 80 | E14: =PFP!G17 -> 239 | F14: =PFP!H17 -> 300.14 | G14: =PFP!I17 -> 1.2558 | H14: ='CRO2_Ins-Mes'!E39 -> 20 | I14: ='CRO2_Ins-Mes'!E53 -> 20 | J14: ='CRO2_Ins-Mes'!E67 -> 40
A15: =PFP!C18 -> V2 | B15: =PFP!D18 -> Pick-up Cab.dupla 2.8 4x4 Diesel | C15: un | D15: 40 | E15: =PFP!G18 -> 464.91 | F15: =PFP!H18 -> 583.83 | G15: =PFP!I18 -> 1.2558 | H15: ='CRO2_Ins-Mes'!E40 -> 10 | I15: ='CRO2_Ins-Mes'!E54 -> 10 | J15: ='CRO2_Ins-Mes'!E68 -> 20
A16: RP | B16: =PFP!D19 -> Relatório Parcial | C16: un | D16: 2 | E16: =PFP!G19 -> 34.41245818 | F16: =PFP!H19 -> 43.22 | G16: =PFP!I19 -> 1.2558 | H16: ='CRO2_Ins-Mes'!E41 -> 1 | I16: ='CRO2_Ins-Mes'!E55 -> 0 | J16: ='CRO2_Ins-Mes'!E69 -> 1
A17: RF | B17: =PFP!D20 -> Relatório Final | C17: un | D17: 3 | E17: =PFP!G20 -> 1525.911339 | F17: =PFP!H20 -> 1916.24 | G17: =PFP!I20 -> 1.2558 | H17: ='CRO2_Ins-Mes'!E42 -> 1 | I17: ='CRO2_Ins-Mes'!E56 -> 1 | J17: ='CRO2_Ins-Mes'!E70 -> 1
A18: =PFP!C21 -> TOP | B18: =PFP!D21 -> Total Serviços Topográficos | C18: un | D18: 1 | E18: =PFP!G21 -> - | F18: =PFP!H21 -> 13260 | G18: =PFP!I21 -> - | H18: ='CRO2_Ins-Mes'!E43 -> 1 | I18: ='CRO2_Ins-Mes'!E57 -> 0 | J18: ='CRO2_Ins-Mes'!E71 -> 0
A19: =PFP!C22 -> GEO | B19: =PFP!D22 -> Total Serviços Geotécnicos | C19: un | D19: 1 | E19: =PFP!G22 -> - | F19: =PFP!H22 -> 12189.68 | G19: =PFP!I22 -> - | H19: ='CRO2_Ins-Mes'!E44 -> 1 | I19: ='CRO2_Ins-Mes'!E58 -> 0 | J19: ='CRO2_Ins-Mes'!E72 -> 0
A20: TOTAL | B20: 80% DO VALOR POR PRODUTO | C20: R$ | D20: 448002.544 | H20: =0.8*(H5*$F$5+H6*$F$6+H7*$F$7+H8*$F$8+H9*$F$9+H10*$F$10+H11*$F$11+H12*$F$12+H13*$F$13+H14*$F$14+H15*$F$15+H16*$F$16+H17*$F$17+H18*$F$18+H19*$F$19) -> 176859.128 | I20: =0.8*(I5*$F$5+I6*$F$6+I7*$F$7+I8*$F$8+I9*$F$9+I10*$F$10+I11*$F$11+I12*$F$12+I13*$F$13+I14*$F$14+I15*$F$15+I16*$F$16+I17*$F$17+I18*$F$18+I19*$F$19) -> 105171.152 | J20: =0.8*(J5*$F$5+J6*$F$6+J7*$F$7+J8*$F$8+J9*$F$9+J10*$F$10+J11*$F$11+J12*$F$12+J13*$F$13+J14*$F$14+J15*$F$15+J16*$F$16+J17*$F$17+J18*$F$18+J19*$F$19) -> 165972.264
B21: 20% DO VALOR POR PRODUTO | C21: R$ | D21: 112000.636 | H21: =0.2*(H5*$F$5+H6*$F$6+H7*$F$7+H8*$F$8+H9*$F$9+H10*$F$10+H11*$F$11+H12*$F$12+H13*$F$13+H14*$F$14+H15*$F$15+H16*$F$16+H17*$F$17+H18*$F$18+H19*$F$19) -> 44214.782 | I21: =0.2*(I5*$F$5+I6*$F$6+I7*$F$7+I8*$F$8+I9*$F$9+I10*$F$10+I11*$F$11+I12*$F$12+I13*$F$13+I14*$F$14+I15*$F$15+I16*$F$16+I17*$F$17+I18*$F$18+I19*$F$19) -> 26292.788 | J21: =0.2*(J5*$F$5+J6*$F$6+J7*$F$7+J8*$F$8+J9*$F$9+J10*$F$10+J11*$F$11+J12*$F$12+J13*$F$13+J14*$F$14+J15*$F$15+J16*$F$16+J17*$F$17+J18*$F$18+J19*$F$19) -> 41493.066
B22: VALOR POR PRODUTO | C22: R$ | D22: =D21+D20 -> 560003.18 | H22: =H21+H20 -> 221073.91 | I22: =I21+I20 -> 131463.94 | J22: =J21+J20 -> 207465.33
B23: % DO VALOR POR PRODUTO | C23: % | D23: =SUM(H23:J23) -> 1 | H23: =ROUND(H20/$D$20,5) -> 0.39477 | I23: =ROUND(I20/$D$20,5) -> 0.23476 | J23: =ROUND(J20/$D$20,5) -> 0.37047

Sheet CRO2_Ins-Mes
A1: CRONOGRAMA FÍSICO
A3: Cod1 | B3: Cod2 | C3: Produtos | D3: Uni | E3: Qde | F3: 1 | G3: 2 | H3: 3 | I3: 4 | J3: 5 | K3: 6 | L3: 7 | M3: 8 | N3: 9 | O3: 10 | P3: 11 | Q3: 12 | R3: 13 | S3: 14 | T3: 15 | U3: 16
A4: 1 | B4: E1.1 | C4: Caracterização Geográfica, Demográfica e Justificativas Iniciais | D4: mês | E4: =SUM(F4:U4) -> 1 | F4: 1
A5: 1 | B5: E1.2 | C5: Estudo Topográfico (levantamento planialtimétrico) | D5: mês | E5: 0.5 | F5: 0.5
A6: 1 | B6: E1.3 | C6: Estudo Geotécnico (Sondagem geotécnica) | D6: mês | E6: 0.5 | F6: 0.5
A7: 1 | B7: E1.4 | C7: Avaliação dos Impactos Ambientais | D7: mês | E7: 1 | F7: 1
A8: 1 | B8: E1.5 | C8: Relatório Parcial | D8: mês | E8: =SUM(F8:U8) -> 1 | F8: 1
A9: 1 | B9: E1.6 | C9: Avaliação Técnica, Socioeconômica e Ambiental das Alternativas | D9: mês | E9: 2 | F9: 1 | G9: 1
A10: 1 | B10: E1.7 | C10: Regularização fundiária | D10: mês | E10: =SUM(F10:U10) -> 0.5 | G10: 0.5
A11: 1 | B11: E1.8 | C11: Programa de necessidades | D11: mês | E11: =SUM(F11:U11) -> 1 | G11: 1
A12: 1 | B12: E1.9 | C12: Relatório Final | D12: mês | E12: 1 | G12: 1
A13: 1 | B13: 1 | C13: Estudo de Viabilidade Técnica, Econômica e Ambiental | D13: mês | E13: 2 | F13: =SUBTOTAL(4,F4:F12) -> 1 | G13: 1 | H13: =SUBTOTAL(4,H4:H12) -> 0 | I13: 0 | J13: 0 | K13: 0 | L13: 0 | M13: 0 | N13: 0 | O13: 0 | P13: 0 | Q13: 0 | R13: 0 | S13: 0 | T13: 0 | U13: 0
A14: 2 | B14: E2.1 | C14: Estudos Ambientais | D14: mês | E14: 2 | G14: 1 | H14: 1
A15: 2 | B15: E2 | C15: Estudos Ambientais | D15: mês | E15: 2 | F15: =SUBTOTAL(4,F14:F14) -> 0 | G15: 1 | H15: 1 | I15: 0 | J15: 0 | K15: 0 | L15: 0 | M15: 0 | O15: 0 | P15: 0 | Q15: 0 | R15: 0 | S15: 0 | T15: 0 | U15: 0
A16: 3 | B16: E3.1 | C16: Projeto de Terraplanagem | D16: mês | E16: 1 | H16: 1
A17: 3 | B17: E3.2 | C17: Projeto arquitetônico | D17: mês | E17: 1 | H17: 1
A18: 3 | B18: E3.3 | C18: Projeto de Paisagismo | D18: mês | E18: 1 | H18: 1
A19: 3 | B19: E3.4 | C19: Projeto de Ambientação | D19: mês | E19: 1 | H19: 1
A20: 3 | B20: E3.5 | C20: Projeto Estrutural | D20: mês | E20: 1 | H20: 1
A21: 3 | B21: E3.6 | C21: Projeto Elétrico | D21: mês | E21: 1 | H21: 1
A22: 3 | B22: E3.7 | C22: Projeto Hidrossanitário | D22: mês | E22: 1 | H22: 1
A23: 3 | B23: E3.8 | C23: Projeto de Rede Estruturada | D23: mês | E23: 1 | I23: 1
A24: 3 | B24: E3.9 | C24: Projeto de Climatização e Refrigeração Industrial | D24: mês | E24: =SUM(F24:U24) -> 1 | I24: 1
A25: 3 | B25: E3.10 | C25: Projeto de Drenagem de Águas Pluviais | D25: mês | E25: 1 | I25: 1
A26: 3 | B26: E3.11 | C26: Projeto de Combate a Incêndio e pânico | D26: mês | E26: 1 | I26: 1
A27: 3 | B27: E3.12 | C27: Orçamento Detalhado da Obra, Especificações Técnicas e Termo de Referência | D27: mês | E27: 1 | I27: 1
A28: 3 | B28: E3.13 | C28: Relatório Final | D28: mês | E28: 1 | I28: 1
A29: 3 | B29: E3 | C29: Estudos de Campo e Projeto Básico | D29: mês | E29: 2 | F29: =SUBTOTAL(4,F16:F28) -> 0 | G29: 0 | H29: 1 | I29: 1 | J29: 0 | K29: 0 | L29: 0 | M29: 0 | N29: 0 | O29: 0 | P29: 0 | R29: =SUBTOTAL(4,R16:R28) -> 0 | S29: =SUBTOTAL(4,S16:S28) -> 0 | T29: =SUBTOTAL(4,T16:T28) -> 0 | U29: =SUBTOTAL(4,U16:U28) -> 0
A30: Total | B30: Total | C30: Balanço Temporal | D30: mês | E30: 4 | F30: =SUBTOTAL(4,F4:F29) -> 1 | G30: 1 | H30: 1 | I30: 1 | J30: 0 | K30: 0 | L30: 0 | M30: 0 | N30: 0 | O30: 0 | P30: 0 | Q30: 0 | R30: 0 | S30: 0 | T30: 0 | U30: 0
A31: Cod1 | B31: Cod2 | C31: Insumos | D31: Uni | E31: Qde | F31: 1 | G31: 2 | H31: 3 | I31: 4 | J31: 5 | K31: 6 | L31: 7 | M31: 8 | N31: 9 | O31: 10 | P31: 11 | Q31: 12 | R31: 13 | S31: 14 | T31: 15 | U31: 16
A32: 1 | B32: =PFP!C8 -> P0 | C32: =PFP!D8 -> Engenheiro coordenador (P8061) | D32: =PFP!E8 -> mês | E32: =SUM(F32:U32) -> 1 | F32: 0.5 | G32: 0.5
A33: 1 | B33: =PFP!C9 -> P1 | C33: =PFP!D9 -> Engenheiro sênior (P8067) | D33: =PFP!E9 -> mês | E33: 0
A34: 1 | B34: =PFP!C10 -> P2 | C34: =PFP!D10 -> Engenheiro pleno (P8066) | D34: =PFP!E10 -> mês | E34: 2 | F34: 1 | G34: 1
A35: 1 | B35: =PFP!C11 -> P3 | C35: =PFP!D11 -> Engenheiro júnior (P8065) | D35: =PFP!E11 -> mês | E35: 2 | F35: 1 | G35: 1
A36: 1 | B36: =PFP!C12 -> T1 | C36: =PFP!D12 -> Técnico de projetos/obra (P8147) | D36: =PFP!E12 -> mês | E36: 2 | F36: 1 | G36: 1
A37: 1 | B37: =PFP!C13 -> D | C37: =PFP!D13 -> Desenhista (P9848) | D37: =PFP!E13 -> mês | E37: 2 | F37: 1 | G37: 1
A38: 1 | B38: A1 | C38: =PFP!D14 -> Secretária (P8135) | D38: mês | E38: 2 | F38: 1 | G38: 1
A39: 1 | B39: =PFP!C17 -> V1 | C39: =PFP!D17 -> Diárias | D39: =PFP!E17 -> dia | E39: 20 | F39: 10 | G39: 10
A40: 1 | B40: =PFP!C18 -> V2 | C40: =PFP!D18 -> Pick-up Cab.dupla 2.8 4x4 Diesel | D40: =PFP!E18 -> dia | E40: 10 | F40: 5 | G40: 5
A41: 1 | B41: RPE | C41: =PFP!D19 -> Relatório Parcial | D41: =PFP!E19 -> un | E41: 1 | F41: 1
A42: 1 | B42: RFE | C42: =PFP!D20 -> Relatório Final | D42: =PFP!E20 -> un | E42: 1 | G42: 1
A43: 1 | B43: =PFP!C21 -> TOP | C43: =PFP!D21 -> Total Serviços Topográficos | D43: =PFP!E21 -> un | E43: 1 | F43: 0.5 | G43: 0.5
A44: 1 | B44: =PFP!C22 -> GEO | C44: =PFP!D22 -> Total Serviços Geotécnicos | D44: =PFP!E22 -> un | E44: 1 | F44: 0.5 | G44: 0.5
A45: 1 | C45: Estudo de Viabilidade Técnica, Econômica e Ambiental | F45: =SUBTOTAL(5,F32:F44) -> 0.5 | G45: 0.5 | H45: 0 | I45: 0 | J45: 0 | K45: 0 | L45: 0 | M45: 0 | N45: 0 | O45: 0 | P45: 0 | Q45: 0 | R45: 0 | S45: 0 | T45: 0 | U45: 0
A46: 2 | B46: =PFP!C8 -> P0 | C46: =PFP!D8 -> Engenheiro coordenador (P8061) | D46: =PFP!E8 -> mês | E46: =SUM(F46:U46) -> 1 | G46: 0.5 | H46: 0.5
A47: 2 | B47: =PFP!C9 -> P1 | C47: =PFP!D9 -> Engenheiro sênior (P8067) | D47: =PFP!E9 -> mês | E47: 0
A48: 2 | B48: =PFP!C10 -> P2 | C48: =PFP!D10 -> Engenheiro pleno (P8066) | D48: =PFP!E10 -> mês | E48: 1 | G48: 0.5 | H48: 0.5
A49: 2 | B49: =PFP!C11 -> P3 | C49: =PFP!D11 -> Engenheiro júnior (P8065) | D49: =PFP!E11 -> mês | E49: 1 | G49: 0.5 | H49: 0.5
A50: 2 | B50: =PFP!C12 -> T1 | C50: =PFP!D12 -> Técnico de projetos/obra (P8147) | D50: =PFP!E12 -> mês | E50: 1 | G50: 0.5 | H50: 0.5
A51: 2 | B51: =PFP!C13 -> D | C51: =PFP!D13 -> Desenhista (P9848) | D51: =PFP!E13 -> mês | E51: 2 | G51: 1 | H51: 1
A52: 2 | B52: =PFP!C14 -> A1 | C52: =PFP!D14 -> Secretária (P8135) | D52: =PFP!E14 -> mês | E52: 2 | G52: 1 | H52: 1
A53: 2 | B53: =PFP!C17 -> V1 | C53: =PFP!D17 -> Diárias | D53: =PFP!E17 -> dia | E53: 20 | G53: 10 | H53: 10
A54: 2 | B54: =PFP!C18 -> V2 | C54: =PFP!D18 -> Pick-up Cab.dupla 2.8 4x4 Diesel | D54: =PFP!E18 -> dia | E54: 10 | G54: 5 | H54: 5
A55: 2 | B55: RPA | C55: =PFP!D19 -> Relatório Parcial | D55: =PFP!E19 -> un | E55: 0
A56: 2 | B56: RFA | C56: =PFP!D20 -> Relatório Final | D56: =PFP!E20 -> un | E56: 1 | H56: 1
A57: 2 | B57: =PFP!C21 -> TOP | C57: =PFP!D21 -> Total Serviços Topográficos | D57: =PFP!E21 -> un | E57: 0
A58: 2 | B58: =PFP!C22 -> GEO | C58: =PFP!D22 -> Total Serviços Geotécnicos | D58: =PFP!E22 -> un | E58: 0
A59: 2 | C59: Estudos Ambientais | F59: =SUBTOTAL(5,F46:F58) -> 0 | G59: 0.5 | H59: 0.5 | I59: 0 | J59: 0 | K59: 0 | L59: 0 | M59: 0 | N59: 0 | O59: 0 | P59: 0 | Q59: 0 | R59: 0 | S59: 0 | T59: 0 | U59: 0
A60: 3 | B60: =PFP!C8 -> P0 | C60: =PFP!D8 -> Engenheiro coordenador (P8061) | D60: =PFP!E8 -> mês | E60: =SUM(F60:U60) -> 1 | H60: 0.5 | I60: 0.5
A61: 3 | B61: =PFP!C9 -> P1 | C61: =PFP!D9 -> Engenheiro sênior (P8067) | D61: =PFP!E9 -> mês | E61: 0
A62: 3 | B62: =PFP!C10 -> P2 | C62: =PFP!D10 -> Engenheiro pleno (P8066) | D62: =PFP!E10 -> mês | E62: 2 | H62: 1 | I62: 1
A63: 3 | B63: =PFP!C11 -> P3 | C63: =PFP!D11 -> Engenheiro júnior (P8065) | D63: =PFP!E11 -> mês | E63: 2 | H63: 1 | I63: 1
A64: 3 | B64: =PFP!C12 -> T1 | C64: =PFP!D12 -> Técnico de projetos/obra (P8147) | D64: =PFP!E12 -> mês | E64: 2 | H64: 1 | I64: 1
A65: 3 | B65: =PFP!C13 -> D | C65: =PFP!D13 -> Desenhista (P9848) | D65: =PFP!E13 -> mês | E65: 2 | H65: 1 | I65: 1
A66: 3 | B66: =PFP!C14 -> A1 | C66: =PFP!D14 -> Secretária (P8135) | D66: =PFP!E14 -> mês | E66: 2 | H66: 1 | I66: 1
A67: 3 | B67: =PFP!C17 -> V1 | C67: =PFP!D17 -> Diárias | D67: =PFP!E17 -> dia | E67: 40 | H67: 20 | I67: 20
A68: 3 | B68: =PFP!C18 -> V2 | C68: =PFP!D18 -> Pick-up Cab.dupla 2.8 4x4 Diesel | D68: =PFP!E18 -> dia | E68: 20 | H68: 10 | I68: 10
A69: 3 | B69: RPP | C69: =PFP!D19 -> Relatório Parcial | D69: =PFP!E19 -> un | E69: 1 | H69: 1
A70: 3 | B70: RFP | C70: =PFP!D20 -> Relatório Final | D70: =PFP!E20 -> un | E70: 1 | I70: 1
A71: 3 | B71: =PFP!C21 -> TOP | C71: =PFP!D21 -> Total Serviços Topográficos | D71: =PFP!E21 -> un | E71: 0
A72: 3 | B72: =PFP!C22 -> GEO | C72: =PFP!D22 -> Total Serviços Geotécnicos | D72: =PFP!E22 -> un | E72: 0
A73: 3 | C73: Estudos de Campo e Projeto Básico | F73: =SUBTOTAL(5,F60:F72) -> 0 | G73: 0 | H73: 0.5 | I73: 0.5 | J73: 0 | K73: 0 | L73: 0 | M73: 0 | N73: 0 | O73: 0 | P73: 0 | Q73: 0 | R73: 0 | S73: 0 | T73: 0 | U73: 0
A74: Total | C74: Balanço de Insumos | F74: =SUBTOTAL(2,F32:F73) -> 11 | G74: 19 | H74: 18 | I74: 9 | J74: 0 | K74: 0 | L74: 0 | M74: 0 | N74: 0 | O74: 0 | P74: 0 | Q74: 0 | R74: 0 | S74: 0 | T74: 0 | U74: 0
